Workbook

Sheet Admin (hidden)
A1: Admin
A3: =Sprachen!H14 -> Version
A4: =Sprachen!H15 -> Version: | B4: v1.0
A5: Versionsdatum: | B5: 2016-08-22
A7: Wichtige Hinweise für Admin
A8: - bei Blattschutz das Recht "Zellen formatieren" beibehalten.
A10: =Sprachen!H17 -> Dropdowns
A11: =Sprachen!H19 -> Verwendetes Tool
A12: =Sprachen!H20 -> a) EVA-Tool der EnFK
A13: =Sprachen!H21 -> b) kantonsspezifisches Tool
A14: =Sprachen!H22 -> Ja oder Nein
A15: =Sprachen!H23 -> ja
A16: =Sprachen!H24 -> nein
A17: =Sprachen!H25 -> Energieträger
A18: =Sprachen!H26 -> Ö | B18: =Sprachen!H32 -> Heizöl
A19: =Sprachen!H27 -> G | B19: =Sprachen!H33 -> Erdgas
A20: =Sprachen!H28 -> F | B20: =Sprachen!H34 -> Fernwärme/-kälte
A21: =Sprachen!H29 -> H | B21: =Sprachen!H35 -> Holz, Biomasse
A22: =Sprachen!H30 -> W | B22: =Sprachen!H36 -> Weitere Brennstoffe
A23: =Sprachen!H31 -> E | B23: =Sprachen!H37 -> Elektrische Energie
A24: =Sprachen!H38 -> Kostenanteil Energie
A25: 0
A26: 0.05
A27: 0.1
A28: 0.15
A29: 0.2
A30: 0.25
A31: 0.5
A32: 0.75
A33: 1
A34: =Sprachen!H39 -> Sprachwahl
A35: DE
A36: FR
A37: IT
A38: =Sprachen!H40 -> Gewichtungsfaktoren
A39: Ö | B39: 1
A40: G | B40: 1
A41: F | B41: 0.6
A42: H | B42: 0.7
A43: W | B43: 1
A44: E | B44: 2

Sheet Sprachen (hidden)
C1: Sprachen | D1: Hinweise: Die FR- und IT-Texte sollten wenn immer möglich in etwa die gleiche Länge haben wie der DE-Text. Sollten bei der Übersetzung Schwierigkeiten wegen der Excel-Formatierung entstehen, bitte Text zumindest inhaltlich übersetzten und Zelle farblich markieren, damit korrektes Format nachträglich eingestellt werden kann. Die Spalte "Zuweisung" muss für die Übersetzung nicht beachtet werden. Sie zeigt lediglich an, in welchem Arbeitsblatt und in welcher Zelle der Text im Excel-Tool angezeigt wird. Zellen mit identischen Begriffen (Duplikaten) wurden ausgeblendet. Dies um zu verhindern dass diese fälschlicherweise doppelt übersetzt werden.
C3: Zuweisung | E3: Übersetzung | H3: Aktive Sprache
A4: Nr. | C4: Arbeitsblatt | D4: Zelle/Bereich | E4: Deutsch | F4: Französisch | G4: Italienisch | H4: =Sprache -> DE
A5: 1 | B5: 1 | C5: Allgemein
A6: 1.1 | B6: =B5+1 -> 2 | C6: Allgemein | D6: Fusszeile Links | E6: Ausführungsbestätigung zur EVA | F6: Confirmation de mise en œuvre des mesures ACE | G6: Conferma di esecuzione relativa ad ACE | H6: =IF(Sprache="DE",E6,IF(Sprache="FR",F6,IF(Sprache="IT",G6,"Fehler: Sprache wählen"))) -> Ausführungsbestätigung zur EVA
A7: 1.1 | B7: =B6+1 -> 3 | C7: Allgemein | D7: Fusszeile Mitte | E7: =CONCATENATE("EVA-Ausführung ",Version) -> EVA-Ausführung v1.0 | F7: =CONCATENATE("ACE-Confirmation ",Version) -> ACE-Confirmation v1.0 | G7: =CONCATENATE("ACE-Conferma ",Version) -> ACE-Conferma v1.0 | H7: EVA-Ausführung v1.0
A8: 1.1 | B8: 4 | C8: Allgemein | D8: Fusszeile Rechts | E8: Konferenz Kantonaler Energiefachstellen (EnFK) | F8: Conférence des services cantonaux de l’énergie (EnFK) | G8: Conferenza dei servizi cantonali dell’energia (EnFK) | H8: Konferenz Kantonaler Energiefachstellen (EnFK)
A9: 1.1 | B9: 5 | C9: Allgemein | D9: Blattname | E9: Anleitung | F9: Introduction | G9: Guida rapida | H9: Anleitung
A10: 1.1 | B10: 6 | C10: Allgemein | D10: Blattname | E10: Titelblatt | F10: Page de couverture | G10: Frontespizio | H10: Titelblatt
A11: 1.1 | B11: 7 | C11: Allgemein | D11: Blattname | E11: Formular G1 + G2 | F11: Formulaire G1 + G2 | G11: Formulario G1 + G2 | H11: Formular G1 + G2
A12: 1 | B12: 8 | C12: Allgemein | D12: Blattname | E12: Beschreibungen G2 | F12: Descriptions G2 | G12: Descrizioni G2 | H12: =IF(Sprache="DE",E12,IF(Sprache="FR",F12,IF(Sprache="IT",G12,"Fehler: Sprache wählen"))) -> Beschreibungen G2
A13: 2 | B13: 9 | C13: Blatt Admin
A14: 2 | B14: 10 | C14: Blatt Admin | E14: Version | F14: Version | G14: Versione | H14: =IF(Sprache="DE",E14,IF(Sprache="FR",F14,IF(Sprache="IT",G14,"Fehler: Sprache wählen"))) -> Version
A15: 2 | B15: 11 | C15: Blatt Admin | E15: Version: | F15: Version: | G15: Versione: | H15: Version:
A16: 2 | B16: 12 | C16: Blatt Admin | E16: Versionsdatum: | F16: Date de la version: | G16: Data della versione: | H16: Versionsdatum:
A17: 2 | B17: 13 | C17: Blatt Admin | E17: Dropdowns | F17: Listes déroulantes | G17: Menu dropdown | H17: Dropdowns
A18: 2 | B18: 14 | C18: Blatt Admin | E18: Anzahl Gebaeude | F18: Nombre de bâtiments | G18: Numero di edifici | H18: Anzahl Gebaeude
A19: 2 | B19: 15 | C19: Blatt Admin | E19: Verwendetes Tool | F19: Indication de l'outil ACE utilisé : | G19: Indicazione del tool ACE utilizzato | H19: Verwendetes Tool
A20: 2 | B20: 16 | C20: Blatt Admin | E20: a) EVA-Tool der EnFK | F20: a) outil ACE de l’EnFK | G20: a) tool ACE dell’EnFK | H20: a) EVA-Tool der EnFK
A21: 2 | B21: 17 | C21: Blatt Admin | E21: b) kantonsspezifisches Tool | F21: b) outil du canton | G21: b) tool specifico di un Cantone | H21: b) kantonsspezifisches Tool
A22: 2 | B22: 18 | C22: Blatt Admin | E22: Ja oder Nein | F22: Oui ou Non | G22: Sì o No | H22: Ja oder Nein
A23: 2 | B23: 19 | C23: Blatt Admin | E23: ja | F23: oui | G23: sì | H23: ja
A24: 2 | B24: 20 | C24: Blatt Admin | E24: nein | F24: non | G24: no | H24: nein
A25: 2 | B25: 21 | C25: Blatt Admin | E25: Energieträger | F25: Agent énergétique | G25: Vettore energetico | H25: Energieträger
A26: 2 | B26: 22 | C26: Blatt Admin | E26: Ö | F26: M | G26: O | H26: Ö
A27: 2 | B27: 23 | C27: Blatt Admin | E27: G | F27: G | G27: G | H27: G
A28: 2 | B28: 24 | C28: Blatt Admin | E28: F | F28: D | G28: T | H28: F
A29: 2 | B29: 25 | C29: Blatt Admin | E29: H | F29: B | G29: L | H29: H
A30: 2 | B30: 26 | C30: Blatt Admin | E30: W | F30: A | G30: A | H30: W
A31: 2 | B31: 27 | C31: Blatt Admin | E31: E | F31: E | G31: E | H31: E
A32: 2 | B32: 28 | C32: Blatt Admin | E32: Heizöl | F32: Mazout | G32: Olio combustile | H32: Heizöl
A33: 2 | B33: 29 | C33: Blatt Admin | E33: Erdgas | F33: Gaz naturel | G33: Gas naturale | H33: Erdgas
A34: 2 | B34: 30 | C34: Blatt Admin | E34: Fernwärme/-kälte | F34: Chaleur ou froid à distance | G34: Teleriscaldamento/teleraffrescamento | H34: Fernwärme/-kälte
A35: 2 | B35: 31 | C35: Blatt Admin | E35: Holz, Biomasse | F35: Bois, biomasse | G35: Legna, biomassa | H35: Holz, Biomasse
A36: 2 | B36: 32 | C36: Blatt Admin | E36: Weitere Brennstoffe | F36: Autres combustibles | G36: Altri combustibili | H36: Weitere Brennstoffe
A37: 2 | B37: 33 | C37: Blatt Admin | E37: Elektrische Energie | F37: Energie électrique | G37: Energia elettrica | H37: Elektrische Energie
A38: 2 | B38: 34 | C38: Blatt Admin | E38: Kostenanteil Energie | F38: Part des coûts de l’énergie | G38: Quota costi energia | H38: Kostenanteil Energie
A39: 2 | B39: 35 | C39: Blatt Admin | E39: Sprachwahl | F39: Choix de la langue | G39: Selezione della lingua | H39: Sprachwahl
A40: 2 | B40: 36 | C40: Blatt Admin | E40: Gewichtungsfaktoren | F40: Facteurs de pondération | G40: Fattori di ponderazione | H40: Gewichtungsfaktoren
A41: 3 | B41: 37 | C41: Blatt Anleitung
A42: 3 | B42: 38 | C42: Blatt Anleitung | E42: Kurzanleitung | F42: Brève introduction | G42: Guida rapida | H42: =IF(Sprache="DE",E42,IF(Sprache="FR",F42,IF(Sprache="IT",G42,"Fehler: Sprache wählen"))) -> Kurzanleitung
A43: 3 | B43: 39 | C43: Blatt Anleitung | E43: =E6 -> Ausführungsbestätigung zur EVA | F43: =F6 -> Confirmation de mise en œuvre des mesures ACE | G43: Conferma di esecuzione relativa ad ACE | H43: Ausführungsbestätigung zur EVA
A44: 3 | B44: 40 | C44: Blatt Anleitung | E44: Sprache | F44: Langue | G44: Lingua | H44: Sprache
A45: 3 | B45: 41 | C45: Blatt Anleitung | E45: Zweck und Ziel | F45: Buts | G45: Obiettivi | H45: Zweck und Ziel
A46: 3 | B46: 42 | C46: Blatt Anleitung | E46: Dieses Tool dient zur Bestätigung der Ausführung von Massnahmen zur Reduktion des Energieverbrauchs von Gebäude und Anlagen, welche in der Energieverbrauchsanalyse (EVA) zur Umsetzung deklariert wurden. Ausserdem können zusätzliche Ersatzmassnahmen oder aus technischen Gründen wesentlich anders umgesetzte Massnahmen (als in der EVA vorgesehen) aufgeführt werden. | F46: Le présent outil permet de confirmer que les mesures visant à réduire la consommation énergétique de bâtiments et installations et dont la mise en œuvre avait été annoncée dans l’analyse de la consommation d’énergie (ACE), ont bel et bien été mises en œuvre. Cet outil permet aussi de signaler des mesures de remplacement supplémentaires ainsi que les mesures dont la mise en œuvre diffère fondamentalement (de celle annoncée dans l’ACE) pour des raisons techniques. | G46: Questo tool serve a confermare l’esecuzione delle misure per la riduzione del consumo di energia di edifici e impianti, dichiarate da attuare nell’analisi del consumo energetico (ACE). Inoltre possono essere effettuate misure sostitutive aggiuntive o misure attuate in modo sostanzialmente diverso (da quelle previste nell’ACE) per motivi tecnici. | H46: Dieses Tool dient zur Bestätigung der Ausführung von Massnahmen zur Reduktion des Energieverbrauchs von Gebäude und Anlagen, welche in der Energieverbrauchsanalyse (EVA) zur Umsetzung deklariert wurden. Ausserdem können zusätzliche Ersatzmassnahmen oder aus technischen Gründen wesentlich anders umgesetzte Massnahmen (als in der EVA vorgesehen) aufgeführt werden.
A47: 3 | B47: 43 | C47: Blatt Anleitung | E47: Aufbau | F47: Structure | G47: Struttura | H47: Aufbau
A48: 3 | B48: 44 | C48: Blatt Anleitung | E48: Dieses Excel-Tool besteht aus mehreren Arbeitsblättern: | F48: Cet outil Excel est constitué de plusieurs feuilles de travail: | G48: Questo tool Excel è composto da più fogli di lavoro: | H48: Dieses Excel-Tool besteht aus mehreren Arbeitsblättern:
A49: 3 | B49: 45 | C49: Blatt Anleitung | E49: Titelblatt: | F49: Feuille de titre: | G49: Frontespizio | H49: Titelblatt:
A50: 3 | B50: 46 | C50: Blatt Anleitung | E50: Allgemeine Angaben zum Unternehmen und Angabe des ursprünglich verwendeten EVA-Tools | F50: Renseignements généraux sur l’entreprise et indication de l'outil ACE utilisé à l’origine | G50: Indicazioni generali sulla ditta e indicazioni sul tool ACE utilizzato originariamente | H50: Allgemeine Angaben zum Unternehmen und Angabe des ursprünglich verwendeten EVA-Tools
A51: 3 | B51: 47 | C51: Blatt Anleitung | E51: Formular G1: | F51: Formulaire G1: | G51: Formulario G1: | H51: Formular G1:
A52: 3 | B52: 48 | C52: Blatt Anleitung | E52: Übertragung der Massnahmen aus Formular F1 des EVA-Tools und Bestätigung der Ausführung | F52: Report des mesures d'amélioration du formulaire F1 de l'outil ACE et confirmation de mise en œuvre | G52: Trasferimento delle misure dal Formulario F1 del tool ACE e dichiarazione di attuazione | H52: Übertragung der Massnahmen aus Formular F1 des EVA-Tools und Bestätigung der Ausführung
A53: 3 | B53: 49 | C53: Blatt Anleitung | E53: Formular G2: | F53: Formulaire G2: | G53: Formulario G2: | H53: Formular G2:
A54: 3 | B54: 50 | C54: Blatt Anleitung | E54: Aufführen von Ersatzmassnahmen oder wesentlich anders umgesetzten Massnahmen | F54: Enumération des mesures de remplacement ou de celles mises en œuvre de façon fondamentalement différente | G54: Elencare le misure sostitutive o attuate in modo sostanzialmente diverso | H54: Aufführen von Ersatzmassnahmen oder wesentlich anders umgesetzten Massnahmen
A55: 3 | B55: 51 | C55: Blatt Anleitung | E55: Beschreibungen G2: | F55: Descriptions G2: | G55: Descrizioni G2: | H55: =IF(Sprache="DE",E55,IF(Sprache="FR",F55,IF(Sprache="IT",G55,"Fehler: Sprache wählen"))) -> Beschreibungen G2:
A56: 3 | B56: 52 | C56: Blatt Anleitung | E56: Beschreibungen der Ersatzmassnahmen von Formular G2 | F56: Descriptions des mesures de remplacement | G56: Descrizioni misure sostitutive aggiuntive | H56: Beschreibungen der Ersatzmassnahmen von Formular G2
A57: 3 | B57: 53 | C57: Blatt Anleitung | E57: Hinweis zur Energieträgergewichtung | F57: Remarque concernant la pondération des agents énergétiques | G57: Avvertenza in merito alla ponderazione dei vettori energetici | H57: Hinweis zur Energieträgergewichtung
A58: 3 | B58: 54 | C58: Blatt Anleitung | E58: Die Energieträgergewichtung erfolgt automatisch und gleich wie in der Version des EVA-Tools, die ursprünglich zur Erfassung der Massnahmen verwendeten wurde: | F58: La pondération des agents énergétiques est automatique et identique à celle de la version de l'outil ACE utilisée à l’origine pour la saisie des mesures d'amélioration : | G58: La ponderazione dei vettori energetici avviene automaticamente ed esattamente come nella versione di tool ACE utilizzata in origine per registrare le misure: | H58: Die Energieträgergewichtung erfolgt automatisch und gleich wie in der Version des EVA-Tools, die ursprünglich zur Erfassung der Massnahmen verwendeten wurde:
A59: 3 | B59: 55 | C59: Blatt Anleitung | E59: falls Sie das EVA-Tool der EnFK verwendet hatten: Elektrizität: 2, Heizöl & Erdgas: 1, Fernwärme/-kälte (inkl. externer Abwärme): 0.6, Holz & Biomasse: 0.7, Umweltwärme (inkl. interner Abwärme) & erneuerbare Stromeigenproduktion: 0 | F59: si vous avez utilisé l'outil ACE de l’EnFK : électricité : 2 | mazout & gaz naturel : 1 | chaleur ou froid à distance (rejets extérieurs de chaleur compris) : 0,6 | bois & biomasse : 0,7 | chaleur ambiante (rejets intérieurs de chaleur compris) & production renouvelable d’électricité : 0 | G59: se avete utilizzato il tool ACE della EnFK: elettricità: 2; olio combustibile e gas naturale: 1; teleriscaldamento/teleraffrescamento (incl. calore residuo esterno): 0,6; legna e biomassa: 0,7; calore ambientale (incl. calore residuo interno) e produzione autonoma di elettricità da fonti rinnovabili: 0 | H59: falls Sie das EVA-Tool der EnFK verwendet hatten: Elektrizität: 2, Heizöl & Erdgas: 1, Fernwärme/-kälte (inkl. externer Abwärme): 0.6, Holz & Biomasse: 0.7, Umweltwärme (inkl. interner Abwärme) & erneuerbare Stromeigenproduktion: 0
A60: 3 | B60: 56 | C60: Blatt Anleitung | E60: falls Sie ein älteres, kantonsspezifisches Tool verwendet hatten: Elektrizität: 2, alle anderen Energieträger: 1 | F60: si vous avez utilisé un outil du canton plus ancien : électricité : 2, tous les autres agents énergétiques : 1 | G60: se avete utilizzato un altro tool più datato e specifico di un Cantone: elettricità: 2, tutti gli altri vettori energetici: 1 | H60: falls Sie ein älteres, kantonsspezifisches Tool verwendet hatten: Elektrizität: 2, alle anderen Energieträger: 1
A61: 3 | B61: 57 | C61: Blatt Anleitung | E61: Dadurch wird sichergestellt, dass die ursprünglich errechnete und vereinbarte Einsparung deckungsgleich mit dieser Ausführungsbestätigung ist. | F61: Cette pondération assure que l’économie calculée et convenue à l’origine est la même que celle de la présente confirmation de mise en œuvre. | G61: In tal modo si garantisce che il risparmio calcolato e concordato in origine coincida con la presente conferma di esecuzione. | H61: Dadurch wird sichergestellt, dass die ursprünglich errechnete und vereinbarte Einsparung deckungsgleich mit dieser Ausführungsbestätigung ist.
A62: 3 | B62: 58 | C62: Blatt Anleitung | E62: Bedienung | F62: Indications d’emploi | G62: Utilizzo | H62: Bedienung
A63: 3 | B63: 59 | C63: Blatt Anleitung | E63: Die Eingaben müssen in chronologischer Reihenfolge von oben nach unten erfolgen. Resultate werden zum Teil erst angezeigt, wenn alle dazugehörigen zwingenden Eingabefelder ausgefüllt wurden. | F63: Les saisies doivent être faites par ordre chronologique de haut en bas. Dans certains cas, les résultats s’affichent seulement lorsque tous les champs de saisie obligatoire correspondants sont remplis. | G63: L’inserimento dei dati deve essere effettuato in ordine cronologico dall’alto verso il basso. In alcuni casi i risultati vengono visualizzati solo se sono stati compilati tutti i campi obbligatori. | H63: Die Eingaben müssen in chronologischer Reihenfolge von oben nach unten erfolgen. Resultate werden zum Teil erst angezeigt, wenn alle dazugehörigen zwingenden Eingabefelder ausgefüllt wurden.
A64: 3 | B64: 60 | C64: Blatt Anleitung | E64: Bitte beachten Sie, dass diese Arbeitsmappe nur funktioniert, wenn die Makroausführung in Excel erlaubt ist (Excel-Option). | F64: Veuillez noter que ce classeur de travail ne fonctionne que si l’exécution des macros est autorisée (option dans Excel). | G64: Tenere presente che la cartella di lavoro funziona solo se viene consentita l’esecuzione delle macro in Microsoft Excel (Opzioni Excel). | H64: Bitte beachten Sie, dass diese Arbeitsmappe nur funktioniert, wenn die Makroausführung in Excel erlaubt ist (Excel-Option).
A65: 3 | B65: 61 | C65: Blatt Anleitung | E65: Die Blätter dieser Arbeitsmappe sind geschützt, um zu verhindern, dass versehentlich Formeln überschrieben werden. | F65: Les feuilles de ce classeur de travail sont protégées pour éviter que des formules ne soient écrasées par mégarde. | G65: I fogli di questa cartella di lavoro sono protetti per evitare che le formule contenute nelle celle vengano inavvertitamente sovrascritte. | H65: Die Blätter dieser Arbeitsmappe sind geschützt, um zu verhindern, dass versehentlich Formeln überschrieben werden.
A66: 3 | B66: 62 | C66: Blatt Anleitung | E66: Die Felder sind zum Teil farblich markiert: | F66: Les champs sont en partie signalés par des couleurs: | G66: I campi per l’inserimento dei dati sono in parte suddivisi secondo il seguente codice di colore: | H66: Die Felder sind zum Teil farblich markiert:
A67: 3 | B67: 63 | C67: Blatt Anleitung | E67: Zwingende Angaben | F67: Renseignements obligatoires | G67: Indicazioni obbligatorie | H67: Zwingende Angaben
A68: 3 | B68: 64 | C68: Blatt Anleitung | E68: Fakultative Angaben | F68: Renseignements facultatifs | G68: Indicazioni facoltative | H68: =IF(Sprache="DE",E68,IF(Sprache="FR",F68,IF(Sprache="IT",G68,"Fehler: Sprache wählen"))) -> Fakultative Angaben
A69: 3 | B69: 65 | C69: Blatt Anleitung | E69: Wichtige Hinweise | F69: Remarques importantes | G69: Avvertenze importanti | H69: =IF(Sprache="DE",E69,IF(Sprache="FR",F69,IF(Sprache="IT",G69,"Fehler: Sprache wählen"))) -> Wichtige Hinweise
A70: 3 | B70: 66 | C70: Blatt Anleitung | E70: Zielgrösse der Energieverbrauchsanalyse | F70: Valeur cible de l'analyse de consommation énergétique | G70: Valore target dell’analisi del consumo energetico | H70: =IF(Sprache="DE",E70,IF(Sprache="FR",F70,IF(Sprache="IT",G70,"Fehler: Sprache wählen"))) -> Zielgrösse der Energieverbrauchsanalyse
A71: 3 | B71: =B70+1 -> 67 | C71: Blatt Anleitung | E71: Problembehebung | F71: Résolution de problèmes | G71: Risoluzione dei problemi | H71: =IF(Sprache="DE",E71,IF(Sprache="FR",F71,IF(Sprache="IT",G71,"Fehler: Sprache wählen"))) -> Problembehebung
A72: 3 | B72: 68 | C72: Blatt Anleitung | E72: Diese Arbeitsmappe wurde in der Ansicht "Seitenlayout" erstellt. In dieser Ansicht kann es passieren, dass Excel fälschlicherweise zwei oder mehr Zellen gleichzeitig auswählt (und dadurch allenfalls Links nicht mehr funktionieren). Vergrössern oder verkleinern Sie in diesem Fall die Ansicht (Zoom) oder wählen Sie in der Registerkarte Ansicht anstatt "Seitenlayout" die Darstellung "Normal". | F72: Ce classeur a été créé dans l’affichage "Mise en page". Dans Excel, il peut se produire que deux cellules ou plus soient sélectionnées simultanément par erreur avec ce type d’affichage (ce qui peut aussi avoir pour effet que les liens ne fonctionnent plus). Si c’est le cas, utilisez le zoom pour agrandir ou diminuer l’affichage ou alors changez le type d’affichage, en sélectionnant l’affichage "Normal" au lieu de l’affichage "Mise en page" dans l’onglet "Affichage". | G72: Questa cartella di lavoro è stata realizzata nella visualizzazione «Layout di pagina». In questa visualizzazione può succedere che Excel selezioni erroneamente due o più celle contemporaneamente e che di conseguenza non funzionino più i link. In questo caso è consigliabile ingrandire o rimpicciolire la visualizzazione (Zoom) oppure scegliere nella scheda «Visualizza» la visualizzazione «Normale» anziché «Layout di pagina». | H72: Diese Arbeitsmappe wurde in der Ansicht "Seitenlayout" erstellt. In dieser Ansicht kann es passieren, dass Excel fälschlicherweise zwei oder mehr Zellen gleichzeitig auswählt (und dadurch allenfalls Links nicht mehr funktionieren). Vergrössern oder verkleinern Sie in diesem Fall die Ansicht (Zoom) oder wählen Sie in der Registerkarte Ansicht anstatt "Seitenlayout" die Darstellung "Normal".
A73: 3 | B73: 69 | C73: Blatt Anleitung | E73: Eingabemeldungen unterstützen Sie mit Hinweisen zu den Eingaben und erscheinen im Normalfall automatisch neben der Eingabezelle. Sollten die Kommentare die Eingabezellen fälschlicherweise jedoch überdecken, können diese mit der Maus verschoben werden. | F73: Des messages s’affichent pour vous aider dans votre saisie. Ils apparaissent normalement à côté de la cellule dans laquelle vous devez effectuer votre saisie. Si par erreur, ils devaient toutefois la masquer, vous pouvez les déplacer au moyen de votre souris. | G73: I messaggi di input forniscono indicazioni utili per l'inserimento dei dati e solitamente vengono visualizzati accanto alla cella di input quando questa viene selezionata. Se tuttavia i commenti dovessero sovrapporsi alle celle di input basta postarli con il mouse. | H73: Eingabemeldungen unterstützen Sie mit Hinweisen zu den Eingaben und erscheinen im Normalfall automatisch neben der Eingabezelle. Sollten die Kommentare die Eingabezellen fälschlicherweise jedoch überdecken, können diese mit der Maus verschoben werden.
A74: 3 | B74: 70 | C74: Blatt Anleitung | E74: Disclaimer | F74: Exclusion de responsabilité | G74: Disclaimer | H74: =IF(Sprache="DE",E74,IF(Sprache="FR",F74,IF(Sprache="IT",G74,"Fehler: Sprache wählen"))) -> Disclaimer
A75: 3 | B75: 71 | C75: Blatt Anleitung | E75: Diese Arbeitsmappe wurde im Auftrag der Konferenz Kantonaler Energiefachstellen (EnFK) erstellt. Weder der Auftraggeber noch der Ersteller haften für die Richtigkeit der Resultate oder Schlussfolgerungen, welche aus dieser Arbeitsmappe gezogen werden. Für die Richtigkeit der Angaben haftet der Benutzer dieser Arbeitsmappe. | F75: Le présent classeur de travail a été réalisé sur mandat de la Conférence des services cantonaux de l’énergie (EnFK). Ni le mandant ni le mandataire ne répondent de la justesse des résultats ou des conclusions qui sont tirées du présent classeur de travail. L’utilisateur du présent classeur de travail répond lui-même de la justesse des données. | G75: Questa cartella di lavoro è stata realizzata su incarico della Conferenza dei servizi cantonali dell’energia (EnFK). Né il committente né il creatore della cartella di lavoro rispondono della correttezza dei risultati e delle conclusioni con questa ottenuti. Della correttezza dei dati risponde l’utente della cartella di lavoro. | H75: =IF(Sprache="DE",E75,IF(Sprache="FR",F75,IF(Sprache="IT",G75,"Fehler: Sprache wählen"))) -> Diese Arbeitsmappe wurde im Auftrag der Konferenz Kantonaler Energiefachstellen (EnFK) erstellt. Weder der Auftraggeber noch der Ersteller haften für die Richtigkeit der Resultate oder Schlussfolgerungen, welche aus dieser Arbeitsmappe gezogen werden. Für die Richtigkeit der Angaben haftet der Benutzer dieser Arbeitsmappe.
A76: 4 | B76: 72 | C76: Blatt Titelblatt
A77: 4 | B77: 73 | C77: Blatt Titelblatt | E77: Ausführungsbestätigung zur Energieverbrauchsanalyse | F77: Confirmation de mise en œuvre des mesures ACE | G77: Conferma di esecuzione relativa ad ACE | H77: =IF(Sprache="DE",E77,IF(Sprache="FR",F77,IF(Sprache="IT",G77,"Fehler: Sprache wählen"))) -> Ausführungsbestätigung zur Energieverbrauchsanalyse
A78: 4 | B78: 74 | C78: Blatt Titelblatt | E78: Titelblatt | F78: Page de couverture | G78: Frontespizio | H78: Titelblatt
A79: 4 | B79: 75 | C79: Blatt Titelblatt | E79: Firmenname / Adresse: | F79: Nom de l’entreprise / adresse: | G79: Nome della ditta/indirizzo: | H79: Firmenname / Adresse:
A80: 4 | B80: 76 | C80: Blatt Titelblatt | E80: Kontaktperson Firma: | F80: Contact dans l’entreprise: | G80: Persona di contatto: | H80: Kontaktperson Firma:
A81: 4 | B81: 77 | C81: Blatt Titelblatt | E81: Name: | F81: Nom: | G81: Nome: | H81: =IF(Sprache="DE",E81,IF(Sprache="FR",F81,IF(Sprache="IT",G81,"Fehler: Sprache wählen"))) -> Name:
A82: 4 | B82: 78 | C82: Blatt Titelblatt | E82: Tel.: | F82: Tél.: | G82: Tel.: | H82: =IF(Sprache="DE",E82,IF(Sprache="FR",F82,IF(Sprache="IT",G82,"Fehler: Sprache wählen"))) -> Tel.:
A83: 4 | B83: 79 | C83: Blatt Titelblatt | E83: Email: | F83: Courriel: | G83: Email: | H83: =IF(Sprache="DE",E83,IF(Sprache="FR",F83,IF(Sprache="IT",G83,"Fehler: Sprache wählen"))) -> Email:
A84: 4 | B84: 80 | C84: Blatt Titelblatt | E84: Fax: | F84: Fax: | G84: Fax: | H84: =IF(Sprache="DE",E84,IF(Sprache="FR",F84,IF(Sprache="IT",G84,"Fehler: Sprache wählen"))) -> Fax:
A85: 4 | B85: 81 | C85: Blatt Titelblatt | E85: Betriebsstätte: | F85: Site d’exploitation: | G85: Stabilimento: | H85: Betriebsstätte:
A86: 4 | B86: 82 | C86: Blatt Titelblatt | E86: Ursprünglich verwendetes EVA-Tool: | F86: Indication de l'outil ACE utilisé : | G86: Indicazione del tool ACE utilizzato: | H86: Ursprünglich verwendetes EVA-Tool:
A87: 4 | B87: 83 | C87: Blatt Titelblatt | E87: (bei Unklarheiten bitte nachfolgenden Hinweis beachten) | F87: (en cas d’incertitude, veuillez lire ce qui suit) | G87: (in caso di dubbi tener presente l’avvertenza che segue) | H87: (bei Unklarheiten bitte nachfolgenden Hinweis beachten)
A88: 4 | B88: 84 | C88: Blatt Titelblatt | E88: Hinweis: | F88: Remarque : | G88: Avvertenza: | H88: Hinweis:
A89: 4 | B89: 85 | C89: Blatt Titelblatt | E89: Bitte geben Sie hier an, ob zur Erfassung der Energieverbrauchsanalyse (EVA) ursprünglich: a) das neue EVA-Tool der EnFK (mit EnFK-Logo auf dem Titelblatt, gleich wie in diesem Dokument), oder b) ein kantonsspezifisches Tool der zuständigen Stelle des Kantons (i.d.R. mit Kantonslogo auf dem Titelblatt) verwendet wurde. Bei Fragen wenden Sie sich bitte an die zuständige Stelle des Kantons. | F89: Veuillez indiquer ici si l’analyse de la consommation d’énergie (ACE) a été saisie à l'origine au moyen : a) du nouvel outil ACE de l’EnFK (le logo de l’EnFK figure sur la feuille de titre, exactement comme ici), ou b) d’un outil du service compétent du canton (avec en général le logo du canton sur la feuille de titre). Pour toute question, veuillez vous adresser au service compétent de votre canton. | G89: Si prega di indicare se per la registrazione dell’analisi del consumo energetico (ACE) originaria a) è stato utilizzato il nuovo tool ACE dell’EnFK (con logo EnFK sul frontespizio, come in questo documento), oppure b) un tool specifico dell’ufficio cantonale competente (in genere con logo del Cantone sul frontespizio). In caso di domande vogliate rivolgervi all’ufficio cantonale competente. | H89: Bitte geben Sie hier an, ob zur Erfassung der Energieverbrauchsanalyse (EVA) ursprünglich: a) das neue EVA-Tool der EnFK (mit EnFK-Logo auf dem Titelblatt, gleich wie in diesem Dokument), oder b) ein kantonsspezifisches Tool der zuständigen Stelle des Kantons (i.d.R. mit Kantonslogo auf dem Titelblatt) verwendet wurde. Bei Fragen wenden Sie sich bitte an die zuständige Stelle des Kantons.
A90: 4 | B90: 86 | C90: Blatt Titelblatt | E90: Datum der Berichterfassung: | F90: Date de la saisie du rapport: | G90: Data del rapporto: | H90: =IF(Sprache="DE",E90,IF(Sprache="FR",F90,IF(Sprache="IT",G90,"Fehler: Sprache wählen"))) -> Datum der Berichterfassung:
A91: 4 | B91: 87 | C91: Blatt Titelblatt | E91: Version: | F91: Version: | G91: Versione: | H91: Version:
A92: 5 | B92: 88 | C92: Blatt Formular G1
A93: 5 | B93: 89 | C93: Blatt Formular G1 | E93: Formular G1 | F93: Formulaire G1 | G93: Formulario G1 | H93: =IF(Sprache="DE",E93,IF(Sprache="FR",F93,IF(Sprache="IT",G93,"Fehler: Sprache wählen"))) -> Formular G1
A94: 5 | B94: 90 | C94: Blatt Formular G1 | E94: Bestätigung der Ausführung der in der EVA deklarierten Massnahmen | F94: Confirmation de la mise en œuvre des mesures d'amélioration annoncées dans l'ACE | G94: Conferma dell’esecuzione delle misure dichiarate nell’ACE | H94: Bestätigung der Ausführung der in der EVA deklarierten Massnahmen
A95: 5 | B95: 91 | C95: Blatt Formular G1 | E95: Jahresendenergiebezug gewichtet gemäss EVA ¹⁾: | F95: Achat annuel d’énergie finale pondéré selon l'ACE ¹⁾: | G95: Prelievo annuo di energia finale ponderato in base all’ACE ¹⁾: | H95: Jahresendenergiebezug gewichtet gemäss EVA ¹⁾:
A96: 5 | B96: 92 | C96: Blatt Formular G1 | E96: 1) Gem. EVA Formular C, Ziffer C.1 (aktuellstes Jahr) | F96: 1) Selon le formulaire C, chiffre C.1 (année la plus récente) | G96: 1) Sec. il Form. C, cifra C.1 (anno più recente) | H96: 1) Gem. EVA Formular C, Ziffer C.1 (aktuellstes Jahr)
A97: 5 | B97: 93 | C97: Blatt Formular G1 | E97: Übertragen Sie in die nachfolgende Tabelle alle in Formular F1 der EVA zur Umsetzung deklarierten neuen Massnahmen und bestätigen Sie anschliessend deren Ausführung. | F97: Reportez dans le tableau suivant toutes les nouvelles mesures d'amélioration dont la mise en œuvre a été annoncée dans le formulaire F1 de l’ACE, puis confirmez leur mise en œuvre. | G97: Trasferite nella tabella che segue tutte le nuove misure dichiarate da attuare nel Formulario F1 dell’ACE e confermate poi la relativa esecuzione. | H97: Übertragen Sie in die nachfolgende Tabelle alle in Formular F1 der EVA zur Umsetzung deklarierten neuen Massnahmen und bestätigen Sie anschliessend deren Ausführung.
A98: 5 | B98: 94 | C98: Blatt Formular G1 | E98: Nr. | F98: N° | G98: N° | H98: Nr.
A99: 5 | B99: 95 | C99: Blatt Formular G1 | E99: Massnahmentitel | F99: Titre de la mesure d’amélioration | G99: Titolo della misura | H99: Massnahmentitel
A100: 5 | B100: 96 | C100: Blatt Formular G1 | E100: Energieeinsparung | F100: Economie d’énergie | G100: Risparmio energetico | H100: Energieeinsparung
A101: 5 | B101: 97 | C101: Blatt Formular G1 | E101: Ungewichtet | F101: Non pondéré | G101: Non ponderato | H101: Ungewichtet
A102: 5 | B102: 98 | C102: Blatt Formular G1 | E102: Einsparung 1 | F102: Economie 1 | G102: Risparmio 1 | H102: Einsparung 1
A103: 5 | B103: 99 | C103: Blatt Formular G1 | E103: Art | F103: G. | G103: Tipo | H103: Art
A104: 5 | B104: 100 | C104: Blatt Formular G1 | E104: Art? | F104: G.? | G104: Tipo? | H104: Art?
A105: 5 | B105: 101 | C105: Blatt Formular G1 | E105: Einsparung 2 | F105: Economie 2 | G105: Risparmio 2 | H105: Einsparung 2
A106: 5 | B106: 102 | C106: Blatt Formular G1 | E106: Art | F106: G. | G106: Tipo | H106: Art
A107: 5 | B107: 103 | C107: Blatt Formular G1 | E107: Art? | F107: G.? | G107: Tipo? | H107: Art?
A108: 5 | B108: 104 | C108: Blatt Formular G1 | E108: Total | F108: Total | G108: Totale | H108: Total
A109: 5 | B109: 105 | C109: Blatt Formular G1 | E109: Gewichtet ¹⁾ | F109: Pondéré ¹⁾ | G109: Ponderato ¹⁾ | H109: Gewichtet ¹⁾
A110: 5 | B110: 106 | C110: Blatt Formular G1 | E110: Total | F110: Total | G110: Totale | H110: Total
A111: 5 | B111: 107 | C111: Blatt Formular G1 | E111: Anteil | F111: % | G111: Quota | H111: Anteil
A112: 5 | B112: 108 | C112: Blatt Formular G1 | E112: Investitionen | F112: Investissements | G112: Investimenti | H112: Investitionen
A113: 5 | B113: 109 | C113: Blatt Formular G1 | E113: Payback | F113: Payback | G113: Payback | H113: Payback
A114: 5 | B114: 110 | C114: Blatt Formular G1 | E114: (gemäss EVA Formular F1) | F114: (selon ACE formulaire F1) | G114: (secondo ACE Formulario F1) | H114: (gemäss EVA Formular F1)
A115: 5 | B115: 111 | C115: Blatt Formular G1 | E115: Total | F115: Total | G115: Totale | H115: Total
A116: 5 | B116: 112 | C116: Blatt Formular G1 | E116: KE | F116: %E | G116: QE | H116: KE
A117: 5 | B117: 113 | C117: Blatt Formular G1 | E117: Werter- haltung | F117: Maint. de la valeur | G117: Manten. del valore | H117: Werter- haltung
A118: 5 | B118: 114 | C118: Blatt Formular G1 | E118: Massnahme im Wesentlichen wie in EVA deklariert ausgeführt? | F118: Mesure exécutée pour l'essentiel comme annoncé dans l’ACE ? | G118: Misure eseguite sostanzialmente nel modo dichiarato nell’ACE? | H118: Massnahme im Wesentlichen wie in EVA deklariert ausgeführt?
A119: 5 | B119: 115 | C119: Blatt Formular G1 | E119: ja | F119: oui | G119: si | H119: ja
A120: 5 | B120: 116 | C120: Blatt Formular G1 | E120: = wie deklariert ausgeführt | F120: = comme annoncé | G120: = eseguite nel modo dichiarato | H120: = wie deklariert ausgeführt
A121: 5 | B121: 116.1 | C121: Blatt Formular G1 | E121: wie deklariert ausgeführt | F121: comme annoncé | G121: eseguite nel modo dichiarato | H121: wie deklariert ausgeführt
A122: 5 | B122: =B120+1 -> 117 | C122: Blatt Formular G1 | E122: nein | F122: non | G122: no | H122: nein
A123: 5 | B123: 118 | C123: Blatt Formular G1 | E123: = nicht o. anders ausgeführt | F123: = non ou autrem. m. en œuvre | G123: = non eseguite o in modo divers | H123: = nicht o. anders ausgeführt
A124: 5 | B124: 118.1 | C124: Blatt Formular G1 | E124: Begründung erforderlich! | F124: Indic. des raisons obligatoire | G124: È richiesta la motivazione | H124: =IF(Sprache="DE",E124,IF(Sprache="FR",F124,IF(Sprache="IT",G124,"Fehler: Sprache wählen"))) -> Begründung erforderlich!
A125: 5 | B125: =B123+1 -> 119 | C125: Blatt Formular G1 | E125: Haustechnikanlagen / Gebäudehülle | F125: Installations de technique du bâtiment / enveloppe du bâtiment | G125: Tecnica impiant./involucro edilizio | H125: Haustechnikanlagen / Gebäudehülle
A126: 5 | B126: 120 | C126: Blatt Formular G1 | E126: Prozess- und Produktionsanlagen | F126: Installations destinées aux processus et à la production | G126: Impianti di processo e produzione | H126: Prozess- und Produktionsanlagen
A127: 5 | B127: 121 | C127: Blatt Formular G1 | E127: S3 / Einsparziel aller auszuführenden neuen Massnahmen gemäss EVA: | F127: S3 / Objectif d’économie des mesures devant être m. en œuvre selon l'ACE | G127: S3 / Obiettivo di risparmio di tutte le nuove misure da eseguire in base all’ACE | H127: S3 / Einsparziel aller auszuführenden neuen Massnahmen gemäss EVA:
A128: 5 | B128: 122 | C128: Blatt Formular G1 | E128: Kontrolle: Wert sollte mit EVA Formular F1, Summe S3 übereinstimmen. | F128: Contrôle : la valeur devrait concorder avec la somme S3 du formulaire ACE F1. | G128: Controllo: il valore dovrebbe coincidere con la somma S3 del formulario ACE F1. | H128: Kontrolle: Wert sollte mit EVA Formular F1, Summe S3 übereinstimmen.
A129: 5 | B129: 122.2 | C129: Blatt Formular G1 | E129: (bei Abweichung zum EVA-Tool: Hinweis durch Klicken dieser Zelle anzeigen) | F129: (en cas d’écart avec l'outil ACE : afficher la note en cliquant sur cette cellule) | G129: (in caso di scostamento risp. al tool ACE: vis. la nota cliccando su questa cella) | H129: (bei Abweichung zum EVA-Tool: Hinweis durch Klicken dieser Zelle anzeigen)
A130: 5 | B130: =B128+1 -> 123 | C130: Blatt Formular G1 | E130: Hinweis | F130: Remarque | G130: Avvertenza | H130: Hinweis
A131: 5 | B131: 124 | C131: Blatt Formular G1 | E131: Bei EVA-Tools der EnFK bis Version 1.7 kann der Wert S3 bei Holz/Biomasse- oder Fernwärmebezug aufgrund einer geänderten Energieträgergewichtung abweichen. Stets übereinstimmen müssen die einzelnen Massnahmen und deren Einsparwerte. | F131: Jusqu’à la version 1.7 de l'outil ACE de l’EnFK, la valeur S3 portant sur l’achat de bois/biomasse ou de chaleur à distance peut diverger en raison d’un changement dans la pondération. En revanche, les mesures et ses chiffres doivent toujours concorder. | G131: Nei tool ACE dell’EnFK fino alla versione 1.7, il valore S3 per legno/biomassa o teleriscaldamento può divergere a causa di una modifica nella ponderazione. Le singole misure e i valori relativi al risparmio devono per contro sempre coincidere. | H131: Bei EVA-Tools der EnFK bis Version 1.7 kann der Wert S3 bei Holz/Biomasse- oder Fernwärmebezug aufgrund einer geänderten Energieträgergewichtung abweichen. Stets übereinstimmen müssen die einzelnen Massnahmen und deren Einsparwerte.
A132: 5 | B132: 125 | C132: Blatt Formular G1 | E132: S6 / Summe aller wie deklariert ausgeführten Massnahmen | F132: S6 / Somme de toutes les mesures m. en œuvre comme annoncé | G132: S6 / Somma di tutte le misure eseguite nel modo dichiarato | H132: S6 / Summe aller wie deklariert ausgeführten Massnahmen
A133: 5 | B133: 126 | C133: Blatt Formular G1 | E133: Bitte Jahresenergiebezug gewichtet eintragen. | F133: Veuillez inscrire l’achat annuel d’énergie pondéré. | G133: Vi preghiamo di registrare l’acquisto annuale di energia ponderato. | H133: Bitte Jahresenergiebezug gewichtet eintragen.
A134: 5 | B134: 127 | C134: Blatt Formular G1 | E134: => 1. Begründung eintragen => 2. Formular G2 ausfüllen! | F134: => 1. inscrire les raisons => 2. remplir le formulaire G2 ! | G134: => 1. indicare le motivazioni =>2. compilare il formulario G2! | H134: => 1. Begründung eintragen => 2. Formular G2 ausfüllen!
A135: 5 | B135: 128 | C135: Blatt Formular G1 | E135: Bitte Massnahmen eintragen und Ausführung bestätigen. | F135: Veuillez inscrire les mesures d'amélioration et confirmer la mise en œuvre. | G135: Indicare le misure e confermare l’esecuzione. | H135: Bitte Massnahmen eintragen und Ausführung bestätigen.
A136: 5 | B136: 129 | C136: Blatt Formular G1 | E136: => alle Massnahmen übertragen und S3=S6? => Unterschrift G2 | F136: => reporter toutes les mesures d'amélioration et S3 = S6 ? => signature G2 | G136: => riportare tutte le misure e S3=S6? => firma su G2 | H136: => alle Massnahmen übertragen und S3=S6? => Unterschrift G2
A137: 5 | B137: 130 | C137: Blatt Formular G1 | E137: Begründung weshalb Massnahme(n) nicht wie ursprünglich deklariert umgesetzt wurde(n): | F137: Expliquer pour quelles raisons les mesures n’ont pas été mises en œuvre telles qu’annoncées : | G137: Spiegazione del motivo per cui le misure non sono state attuate nel modo dichiarato originariamente: | H137: Begründung weshalb Massnahme(n) nicht wie ursprünglich deklariert umgesetzt wurde(n):
A138: 5 | B138: =B137+1 -> 131 | C138: Blatt Formular G1 | E138: Kommentar zu den (wie deklariert) ausgeführten Massnahmen (fakultativ): | F138: Commentaire des mesures d'amélioration mises en œuvre conformément à leur annonce (facultatif) : | G138: Commento sulle misure eseguite nel modo dichiarato (facoltativo): | H138: Kommentar zu den (wie deklariert) ausgeführten Massnahmen (fakultativ):
A139: 6 | B139: 132 | C139: Blatt Formular G2
A140: 6 | B140: 133 | C140: Blatt Formular G2 | E140: Formular G2 | F140: Formulaire G2 | G140: Formulario G2 | H140: Formular G2
A141: 6 | B141: 134 | C141: Blatt Formular G2 | E141: Realisierte Massnahmen als Ersatz für nicht oder wesentlich anders realisierte Massnahmen | F141: Mesures mises en œuvre en remplacement de celles non mises en œuvre ou mises en œuvre avec des changements fondamentaux | G141: Misure realizzate in sostituzione delle misure non realizzate in modo sostanzialmente diverso | H141: Realisierte Massnahmen als Ersatz für nicht oder wesentlich anders realisierte Massnahmen
A142: 6 | B142: 135 | C142: Blatt Formular G2 | E142: Nr. | F142: N° | G142: N° | H142: =IF(Sprache="DE",E142,IF(Sprache="FR",F142,IF(Sprache="IT",G142,"Fehler: Sprache wählen"))) -> Nr.
A143: 6 | B143: 136 | C143: Blatt Formular G2 | E143: Ersatzmassnahmen müssen im Arbeitsblatt "Beschreibungen G2" oder einer Beilage detailliert und nachvollziehbar beschrieben werden! | F143: Les mesures de remplacement doivent être clairement décrites dans la feuille "Descriptions G2" de ce classeur ou dans une annexe. | G143: Le misure sostitutive aggiuntive devono essere descritte in modo chiaro nel foglio di lavoro «Descrizioni G2» o in un documento allegato. | H143: Ersatzmassnahmen müssen im Arbeitsblatt "Beschreibungen G2" oder einer Beilage detailliert und nachvollziehbar beschrieben werden!
A144: 6 | B144: 137 | C144: Blatt Formular G2 | E144: Massnahmentitel | F144: Titre de la mesure d’amélioration | G144: Titolo della misura | H144: =IF(Sprache="DE",E144,IF(Sprache="FR",F144,IF(Sprache="IT",G144,"Fehler: Sprache wählen"))) -> Massnahmentitel
A145: 6 | B145: 138 | C145: Blatt Formular G2 | E145: Energieeinsparung | F145: Economie d’énergie | G145: Risparmio energetico | H145: =IF(Sprache="DE",E145,IF(Sprache="FR",F145,IF(Sprache="IT",G145,"Fehler: Sprache wählen"))) -> Energieeinsparung
A146: 6 | B146: 139 | C146: Blatt Formular G2 | E146: Ungewichtet | F146: Non pondéré | G146: Non ponderato | H146: =IF(Sprache="DE",E146,IF(Sprache="FR",F146,IF(Sprache="IT",G146,"Fehler: Sprache wählen"))) -> Ungewichtet
A147: 6 | B147: 140 | C147: Blatt Formular G2 | E147: Einsparung 1 | F147: Economie 1 | G147: Risparmio 1 | H147: =IF(Sprache="DE",E147,IF(Sprache="FR",F147,IF(Sprache="IT",G147,"Fehler: Sprache wählen"))) -> Einsparung 1
A148: 6 | B148: 141 | C148: Blatt Formular G2 | E148: Art | F148: G. | G148: Tipo | H148: =IF(Sprache="DE",E148,IF(Sprache="FR",F148,IF(Sprache="IT",G148,"Fehler: Sprache wählen"))) -> Art
A149: 6 | B149: 142 | C149: Blatt Formular G2 | E149: Art? | F149: G. ? | G149: Tipo ? | H149: Art?
A150: 6 | B150: 143 | C150: Blatt Formular G2 | E150: Einsparung 2 | F150: Economie 2 | G150: Risparmio 2 | H150: =IF(Sprache="DE",E150,IF(Sprache="FR",F150,IF(Sprache="IT",G150,"Fehler: Sprache wählen"))) -> Einsparung 2
A151: 6 | B151: 144 | C151: Blatt Formular G2 | E151: Art | F151: G. | G151: Tipo | H151: =IF(Sprache="DE",E151,IF(Sprache="FR",F151,IF(Sprache="IT",G151,"Fehler: Sprache wählen"))) -> Art
A152: 6 | B152: 145 | C152: Blatt Formular G2 | E152: Art? | F152: G. ? | G152: Tipo ? | H152: Art?
A153: 6 | B153: 146 | C153: Blatt Formular G2 | E153: Total | F153: Total | G153: Totale | H153: =IF(Sprache="DE",E153,IF(Sprache="FR",F153,IF(Sprache="IT",G153,"Fehler: Sprache wählen"))) -> Total
A154: 6 | B154: 147 | C154: Blatt Formular G2 | E154: Gewichtet ¹⁾ | F154: Pondéré ¹⁾ | G154: Ponderato ¹⁾ | H154: =IF(Sprache="DE",E154,IF(Sprache="FR",F154,IF(Sprache="IT",G154,"Fehler: Sprache wählen"))) -> Gewichtet ¹⁾
A155: 6 | B155: 148 | C155: Blatt Formular G2 | E155: Total | F155: Total | G155: Totale | H155: =IF(Sprache="DE",E155,IF(Sprache="FR",F155,IF(Sprache="IT",G155,"Fehler: Sprache wählen"))) -> Total
A156: 6 | B156: 149 | C156: Blatt Formular G2 | E156: Anteil | F156: % | G156: Quota | H156: =IF(Sprache="DE",E156,IF(Sprache="FR",F156,IF(Sprache="IT",G156,"Fehler: Sprache wählen"))) -> Anteil
A157: 6 | B157: 150 | C157: Blatt Formular G2 | E157: Energiepreis | F157: Prix de l’énergie | G157: Prezzo dell’energia | H157: =IF(Sprache="DE",E157,IF(Sprache="FR",F157,IF(Sprache="IT",G157,"Fehler: Sprache wählen"))) -> Energiepreis
A158: 6 | B158: 151 | C158: Blatt Formular G2 | E158: Einspar.1 | F158: Economie 1 | G158: Risparmio 1 | H158: Einspar.1
A159: 6 | B159: 152 | C159: Blatt Formular G2 | E159: Einspar.2 | F159: Economie 2 | G159: Risparmio 2 | H159: =IF(Sprache="DE",E159,IF(Sprache="FR",F159,IF(Sprache="IT",G159,"Fehler: Sprache wählen"))) -> Einspar.2
A160: 6 | B160: 153 | C160: Blatt Formular G2 | E160: Kosten- einsp. | F160: Econ. (coûts) | G160: Rispar. costi | H160: Kosten- einsp.
A161: 6 | B161: 154 | C161: Blatt Formular G2 | E161: Total | F161: Total | G161: Totale | H161: Total
A162: 6 | B162: 155 | C162: Blatt Formular G2 | E162: Investitionen | F162: Investissements | G162: Investimenti | H162: Investitionen
A163: 6 | B163: 156 | C163: Blatt Formular G2 | E163: Total | F163: Total | G163: Totale | H163: Total
A164: 6 | B164: 157 | C164: Blatt Formular G2 | E164: KE | F164: %E | G164: QE | H164: KE
A165: 6 | B165: 158 | C165: Blatt Formular G2 | E165: Werter- haltung | F165: Maintien de la valeur | G165: Mantenim. del valore | H165: =IF(Sprache="DE",E165,IF(Sprache="FR",F165,IF(Sprache="IT",G165,"Fehler: Sprache wählen"))) -> Werter- haltung
A166: 6 | B166: 159 | C166: Blatt Formular G2 | E166: Pay- back | F166: Pay- back | G166: Pay- back | H166: =IF(Sprache="DE",E166,IF(Sprache="FR",F166,IF(Sprache="IT",G166,"Fehler: Sprache wählen"))) -> Pay- back
A167: 6 | B167: 160 | E167: Ersatzmassnahmen | F167: Mesures de remplacement | G167: Misure sostitutive aggiuntive | H167: Ersatzmassnahmen
A168: 6 | B168: 161 | C168: Blatt Formular G2 | E168: S7 / Summe aller zusätzlichen Ersatzmassnahmen | F168: S7 / Somme de toutes les mesures de remplacement supplémentaires | G168: S7 / Somma di tutte le misure sostitutive aggiuntive | H168: S7 / Summe aller zusätzlichen Ersatzmassnahmen
A169: 6 | B169: 162 | C169: Blatt Formular G2 | E169: S6 / Summe aller wie deklariert ausgeführten Massnahmen | F169: S6 / Somme de toutes les mesures m. en œuvre comme annoncé | G169: S6 / Somma di tutte le misure eseguite nel modo dichiarato | H169: S6 / Summe aller wie deklariert ausgeführten Massnahmen
A170: 6 | B170: 163 | C170: Blatt Formular G2 | E170: (gemäss Formular G1) | F170: (selon formulaire G1) | G170: (secondo il Formulario G1) | H170: (gemäss Formular G1)
A171: 6 | B171: 164 | C171: Blatt Formular G2 | E171: S8 / Summe aller in den letzten drei Jahren ausgeführten Massnahmen | F171: S8 / Somme de toutes les mesures m. en œuvre durant les 3 dernières années | G171: S8 / Somma di tutte le misure eseguite negli ultimi tre anni | H171: S8 / Summe aller in den letzten drei Jahren ausgeführten Massnahmen
A172: 6 | B172: 165 | C172: Blatt Formular G2 | E172: Begründung, weshalb die Zielgrösse (S3) nicht erreicht wurde: | F172: Expliquer pour quelles raisons la valeur cible (S3) n’a pas été atteinte : | G172: Spiegazione del motivo per cui non è stato possibile raggiungere il valore target (S3): | H172: Begründung, weshalb die Zielgrösse (S3) nicht erreicht wurde:
A173: 6 | B173: 166 | C173: Blatt Formular G2 | E173: Allgemeiner Kommentar zur Ausführung der Massnahmen (fakultativ): | F173: Commentaire général sur la mise en œuvre des mesures d'amélioration (facultatif) : | G173: Commento generale sull’esecuzione delle misure (facoltativo): | H173: Allgemeiner Kommentar zur Ausführung der Massnahmen (fakultativ):
A174: 6 | B174: 167 | C174: Blatt Formular G2 | E174: Bestätigung | F174: Confirmation | G174: Conferma | H174: Bestätigung
A175: 6 | B175: 168 | C175: Blatt Formular G2 | E175: Der/die Eigentümer/In der Betriebsstätte bestätigt mit dieser rechtsgültigen Unterschrift, dass er/sie: | F175: En apposant valablement sa signature, le propriétaire du site d’exploitation certifie | G175: Il/la proprietario/a dello stabilimento con firma giuridicamente valida conferma che: | H175: Der/die Eigentümer/In der Betriebsstätte bestätigt mit dieser rechtsgültigen Unterschrift, dass er/sie:
A176: 6 | B176: 169 | C176: Blatt Formular G2 | E176: 1. die auf Formular G1 aufgelisteten Massnahmen ("Auszuführende neue Massnahmen" aus EVA Formular-Blatt F1) korrekt und vollständig übernommen hat, | F176: 1. les mesures qui figurent sur le formulaire G1 (« nouvelles mesures d’amélioration » de la feuille F1 du formulaire ACE) ont été reprises correctement et dans leur intégralité, | G176: 1. le misure elencate nel Formulario G1 ("Nuove misure da attuare" dal foglio del Formulario F1 ACE) sono state riprese in modo corretto e completo, | H176: 1. die auf Formular G1 aufgelisteten Massnahmen ("Auszuführende neue Massnahmen" aus EVA Formular-Blatt F1) korrekt und vollständig übernommen hat,
A177: 6 | B177: 170 | C177: Blatt Formular G3 | E177: 2. die auf Formular G1 als ausgeführt deklarierten Massnahmen (Ausführung "ja") im Wesentlichen wie in der EVA beschrieben ausgeführt wurden, und | F177: 2. les mesures d'amélioration annoncées comme étant mises en œuvre sur le form. G1 (mise en œuvre « oui ») ont été mises en œuvre pour l'essentiel comme décrit dans l’ACE, et | G177: 2. le misure dichiarate effettuate nel Formulario G1 (attuazione "sì") sono state attuate sostanzialmente nel modo descritto nell’ACE, | H177: 2. die auf Formular G1 als ausgeführt deklarierten Massnahmen (Ausführung "ja") im Wesentlichen wie in der EVA beschrieben ausgeführt wurden, und
A178: 6 | B178: 171 | C178: Blatt Formular G2 | E178: 3. die auf Formular G2 aufgelisteten Massnahmen vollständig realisiert wurden. | F178: 3. les mesures d'amélioration qui figurent sur le formulaire G2 ont été intégralement mises en œuvre. | G178: 3. le misure elencate nel Formulario G2 sono state realizzate completamente. | H178: 3. die auf Formular G2 aufgelisteten Massnahmen vollständig realisiert wurden.
A179: 6 | B179: 172 | C179: Blatt Formular G2 | E179: Ort, Dat.: | F179: Lieu, date: | G179: Luogo, data: | H179: Ort, Dat.:
A180: 6 | B180: 173 | C180: Blatt Formular G2 | E180: Unterschrift: | F180: Signature: | G180: Firma: | H180: =IF(Sprache="DE",E180,IF(Sprache="FR",F180,IF(Sprache="IT",G180,"Fehler: Sprache wählen"))) -> Unterschrift:
A181: 6 | B181: 174 | C181: Blatt Formular G1/G2 | E181: Auswahl Energieträger | F181: Agents énergétiques à choix | G181: Scelta del vettore energetico | H181: =IF(Sprache="DE",E181,IF(Sprache="FR",F181,IF(Sprache="IT",G181,"Fehler: Sprache wählen"))) -> Auswahl Energieträger
A182: 6 | B182: 175 | C182: Blatt Formular G1/G2 | E182: Ö = Heizöl G = Erdgas F = Fernwärme/-kälte H = Holz, Biomasse W = Weitere Brennstoffe E = Elektrische Energie | F182: M = mazout G = gaz naturel D = chaleur ou froid à distance B = bois, biomasse A = autres combustibles E = énergie électrique | G182: O = olio combustile G = gas naturale F = teleriscaldamento/teleraffrescamento L = legna, biomassa A = altri combustibili E = energia elettrica | H182: Ö = Heizöl G = Erdgas F = Fernwärme/-kälte H = Holz, Biomasse W = Weitere Brennstoffe E = Elektrische Energie
A183: 6 | B183: 176 | C183: Blatt Formular G1/G2 | E183: Energiepreis | F183: Prix énergie | G183: Prezzo energia | H183: Energiepreis
A184: 6 | B184: 177 | C184: Blatt Formular G1/G2 | E184: Geben Sie hier den Energiepreis des betreffenden Energieträgers (Art) an: Ö = Heizöl G = Erdgas F = Fernwärme/-kälte H = Holz, Biomasse W = Weitere Brennstoffe E = Elektrische Energie | F184: Indiquez ici le prix de l’énergie de l’agent énergétique (genre) : M = mazout G = gaz naturel D = chaleur ou froid à distance B = bois, biomasse A = autres combustibles E = énergie électrique | G184: Vi preghiamo di inserire il prezzo dell’energia del rispettivo vettore energetico (tipo): O = olio combustile G = gas naturale F = teleriscaldamento/teleraffrescamento L = legna, biomassa A = altri combustibili E = energia elettrica | H184: Geben Sie hier den Energiepreis des betreffenden Energieträgers (Art) an: Ö = Heizöl G = Erdgas F = Fernwärme/-kälte H = Holz, Biomasse W = Weitere Brennstoffe E = Elektrische Energie
A185: 6 | B185: 178 | C185: Blatt Formular G1/G2 | E185: Preis? | F185: Prix ? | G185: Prezzo ? | H185: =IF(Sprache="DE",E185,IF(Sprache="FR",F185,IF(Sprache="IT",G185,"Fehler: Sprache wählen"))) -> Preis?
A186: 6 | B186: =B184+1 -> 178 | C186: Blatt Formular G1/G2 | E186: Kostenanteil Energie | F186: Part des coûts de l’énergie | G186: Quota costi energia | H186: =IF(Sprache="DE",E186,IF(Sprache="FR",F186,IF(Sprache="IT",G186,"Fehler: Sprache wählen"))) -> Kostenanteil Energie
A187: 6 | B187: 179 | C187: Blatt Formular G1/G2 | E187: Anteil der Massnahmenkosten welcher zur Steigerung der Energieeffizienz anfällt. 0% = reine Ersatzinvestition 100% = alle Kosten fallen für energetische Verbesserung an -> Berechnung siehe Wegleitung | F187: Pourcentage des coûts des MA affecté à l’amélioration de l’efficacité énerg. 0 % = investiss. uniq. à des fins de remplacement 100 % = coûts sont destinés seulem. à l’amélioration de l’efficacité énerg. ->Consultez l’aide-mémoire pour le calcul | G187: Quota dei costi delle misure destinati all’incremento dell’efficienza energetica. 0% = puro investimento sostitutivo 100% = tutti i costi sono destinati esclusivamente ai miglioramenti energetici -> Per il calcolo vedi la guida | H187: Anteil der Massnahmenkosten welcher zur Steigerung der Energieeffizienz anfällt. 0% = reine Ersatzinvestition 100% = alle Kosten fallen für energetische Verbesserung an -> Berechnung siehe Wegleitung
A188: 6 | B188: =B186+1 -> 179 | C188: Blatt Formular G1/G2 | E188: KE? | F188: %E? | G188: QE? | H188: =IF(Sprache="DE",E188,IF(Sprache="FR",F188,IF(Sprache="IT",G188,"Fehler: Sprache wählen"))) -> KE?
A189: 6 | B189: =B187+1 -> 180 | C189: Blatt Formular G1/G2 | E189: Werterhaltung | F189: Maintien de la valeur | G189: Mantenimento del valore | H189: =IF(Sprache="DE",E189,IF(Sprache="FR",F189,IF(Sprache="IT",G189,"Fehler: Sprache wählen"))) -> Werterhaltung
A190: 6 | B190: 181 | C190: Blatt Formular G1/G2 | E190: Anteil der Massnahmenkosten welcher (sowieso) zur Werterhaltung und nicht zur energetischen Verbesserung anfällt. 100% = reine Ersatzinvestition 0% = alle Kosten fallen für energetische Verbesserung an | F190: Part des coûts des mesures d'amélioration consacrée au maintien de la valeur et non pas à l’amélioration énergétique. 100 % = investiss. uniq. à des fins de remplacement 0 % = coûts sont destinés seulem. à l’amélioration de l’efficacité énerg. | G190: Quota dei costi delle misure dedicate (in ogni caso) al mantenimento del valore e non al miglioramento energetico. 100% = puro investimento sostitutivo 0% = tutti i costi sono destinati esclusivamente ai miglioramenti energetici | H190: Anteil der Massnahmenkosten welcher (sowieso) zur Werterhaltung und nicht zur energetischen Verbesserung anfällt. 100% = reine Ersatzinvestition 0% = alle Kosten fallen für energetische Verbesserung an
A191: 6 | B191: =B189+1 -> 181 | C191: Blatt Formular G1/G2 | E191: Werterh? | F191: Maint. valeur? | G191: Mant. valore? | H191: =IF(Sprache="DE",E191,IF(Sprache="FR",F191,IF(Sprache="IT",G191,"Fehler: Sprache wählen"))) -> Werterh?
A192: 7 | B192: =B190+1 -> 182 | C192: Blatt Beschreibungen
A193: 7 | B193: 183 | C193: Blatt Beschreibungen | E193: Beschreibungen G2 | F193: Descriptions G2 | G193: Descrizioni G2 | H193: Beschreibungen G2
A194: 7 | B194: 184 | C194: Blatt Beschreibungen | E194: Beschreibung der Ersatzmassnahmen | F194: Descriptions des mesures de remplacement | G194: Descrizioni misure sostitutive aggiuntive | H194: Beschreibung der Ersatzmassnahmen
A195: 7 | B195: 185 | C195: Blatt Beschreibungen | E195: Hinweise: | F195: Remarques: | G195: Avvertenze: | H195: Hinweise:
A196: 7 | B196: 186 | C196: Blatt Beschreibungen | E196: - Die im Formular G2 aufgeführten Massnahmen müssen in diesem Arbeitsblatt oder einem Beilagendokument detailliert und nachvollziehbar beschrieben werden. | F196: - Les mesures d’amélioration qui figurent dans les formulaires G2 doivent être décrites de manière détaillée et compréhensible dans cette feuille de travail ou dans un document que vous annexez. | G196: - Le misure elencate nei Formulari G2 devono essere descritte in questo foglio di lavoro in modo dettagliato e chiaro o in un documento allegato a parte. | H196: - Die im Formular G2 aufgeführten Massnahmen müssen in diesem Arbeitsblatt oder einem Beilagendokument detailliert und nachvollziehbar beschrieben werden.
A197: 7 | B197: 187 | C197: Blatt Beschreibungen | E197: - Die Beschreibungsfelder werden erst angezeigt, wenn die Massnahmentitel in Formular G2 eingetragen wurden. | F197: - Les champs descriptifs s’affichent seulement si les titres des mesures d’amélioration ont été indiqués dans le formulaire G2. | G197: - I campi per la descrizione delle misure sono visualizzati solamente se sono stati riportati i titoli delle misure nel Formulario G2. | H197: - Die Beschreibungsfelder werden erst angezeigt, wenn die Massnahmentitel in Formular G2 eingetragen wurden.
A198: 7 | B198: 188 | C198: Blatt Beschreibungen | E198: - Wird für die Massnahmenbeschreibung mehr Platz benötigt, kann die Zeilenhöhe manuell angepasst werden. | F198: - Si vous avez besoin de plus de place pour décrire les mesures d’amélioration, vous pouvez adapter la hauteur des lignes. | G198: - Se per la descrizione è necessario più spazio si può modificare manualmente l’altezza della riga. | H198: - Wird für die Massnahmenbeschreibung mehr Platz benötigt, kann die Zeilenhöhe manuell angepasst werden.
A199: 7 | B199: 189 | C199: Blatt Beschreibungen | E199: - Zeilenumbrüche können durch die Tastenkombination "Alt" + "Enter" eingefügt werden. | F199: - Pour passer à la ligne, pressez simultanément sur les touches "Alt" & "Enter". | G199: - Per inserire un'interruzione di riga premere i tasti «Alt»+«Invio». | H199: - Zeilenumbrüche können durch die Tastenkombination "Alt" + "Enter" eingefügt werden.
A200: 7 | B200: 190 | C200: Blatt Beschreibungen | E200: Ersatzmassnahme 1, Formular G2: | F200: Mesure d’amélioration 1, formulaire G2: | G200: Misura 1, Formulario G2: | H200: Ersatzmassnahme 1, Formular G2:
A201: 7 | B201: 191 | C201: Blatt Beschreibungen | E201: Ersatzmassnahme 2, Formular G2: | F201: Mesure d’amélioration 2, formulaire G2: | G201: Misura 2, Formulario G2: | H201: Ersatzmassnahme 2, Formular G2:
... 21 more rows

Sheet Anleitung
A1: =Sprachen!H42 -> Kurzanleitung
A2: =fusszeile_links -> Ausführungsbestätigung zur EVA
A5: =Sprachen!H44 -> Sprache | C5: DE
A6: DE: Bitte wählen Sie Ihre gewünschte Sprache | F6: FR: Veuillez choisir votre langue | J6: IT: Scegliere la lingua
A8: =Sprachen!H45 -> Zweck und Ziel
A9: =Sprachen!H46 -> Dieses Tool dient zur Bestätigung der Ausführung von Massnahmen zur Reduktion des Energieverbrauchs von Gebäude und Anlagen, welche in der Energieverbrauchsanalyse (EVA) zur Umsetzung deklariert wurden. Ausserdem können zusätzliche Ersatzmassnahmen oder aus technischen Gründen wesentlich anders umgesetzte Massnahmen (als in der EVA vorgesehen) aufgeführt werden.
A11: =Sprachen!H47 -> Aufbau
A12: =Sprachen!H48 -> Dieses Excel-Tool besteht aus mehreren Arbeitsblättern:
A13: - | B13: =Sprachen!H49 -> Titelblatt: | D13: =Sprachen!H50 -> Allgemeine Angaben zum Unternehmen und Angabe des ursprünglich verwendeten EVA-Tools
A14: - | B14: =Sprachen!H51 -> Formular G1: | D14: =Sprachen!H52 -> Übertragung der Massnahmen aus Formular F1 des EVA-Tools und Bestätigung der Ausführung
A15: - | B15: =Sprachen!H53 -> Formular G2: | D15: =Sprachen!H54 -> Aufführen von Ersatzmassnahmen oder wesentlich anders umgesetzten Massnahmen
A16: - | B16: =Sprachen!H55 -> Beschreibungen G2: | D16: =Sprachen!H56 -> Beschreibungen der Ersatzmassnahmen von Formular G2
A18: =Sprachen!H57 -> Hinweis zur Energieträgergewichtung
A19: =Sprachen!H58 -> Die Energieträgergewichtung erfolgt automatisch und gleich wie in der Version des EVA-Tools, die ursprünglich zur Erfassung der Massnahmen verwendeten wurde:
A20: - | B20: =Sprachen!H59 -> falls Sie das EVA-Tool der EnFK verwendet hatten: Elektrizität: 2, Heizöl & Erdgas: 1, Fernwärme/-kälte (inkl. externer Abwärme): 0.6, Holz & Biomasse: 0.7, Umweltwärme (inkl. interner Abwärme) & erneuerbare Stromeigenproduktion: 0
A21: - | B21: =Sprachen!H60 -> falls Sie ein älteres, kantonsspezifisches Tool verwendet hatten: Elektrizität: 2, alle anderen Energieträger: 1
A22: =Sprachen!H61 -> Dadurch wird sichergestellt, dass die ursprünglich errechnete und vereinbarte Einsparung deckungsgleich mit dieser Ausführungsbestätigung ist.
A24: =Sprachen!H62 -> Bedienung
A25: - | B25: =Sprachen!H63 -> Die Eingaben müssen in chronologischer Reihenfolge von oben nach unten erfolgen. Resultate werden zum Teil erst angezeigt, wenn alle dazugehörigen zwingenden Eingabefelder ausgefüllt wurden.
A26: - | B26: =Sprachen!H64 -> Bitte beachten Sie, dass diese Arbeitsmappe nur funktioniert, wenn die Makroausführung in Excel erlaubt ist (Excel-Option).
A27: - | B27: =Sprachen!H65 -> Die Blätter dieser Arbeitsmappe sind geschützt, um zu verhindern, dass versehentlich Formeln überschrieben werden.
A28: - | B28: =Sprachen!H66 -> Die Felder sind zum Teil farblich markiert:
D30: =Sprachen!H67 -> Zwingende Angaben
D32: =Sprachen!H68 -> Fakultative Angaben
D34: =Sprachen!H69 -> Wichtige Hinweise
D36: =Sprachen!H70 -> Zielgrösse der Energieverbrauchsanalyse
A38: =Sprachen!H71 -> Problembehebung
A39: - | B39: =Sprachen!H72 -> Diese Arbeitsmappe wurde in der Ansicht "Seitenlayout" erstellt. In dieser Ansicht kann es passieren, dass Excel fälschlicherweise zwei oder mehr Zellen gleichzeitig auswählt (und dadurch allenfalls Links nicht mehr funktionieren). Vergrössern oder verkleinern Sie in diesem Fall die Ansicht (Zoom) oder wählen Sie in der Registerkarte Ansicht anstatt "Seitenlayout" die Darstellung "Normal".
A40: - | B40: =Sprachen!H73 -> Eingabemeldungen unterstützen Sie mit Hinweisen zu den Eingaben und erscheinen im Normalfall automatisch neben der Eingabezelle. Sollten die Kommentare die Eingabezellen fälschlicherweise jedoch überdecken, können diese mit der Maus verschoben werden.
A42: =Sprachen!H74 -> Disclaimer
A43: =Sprachen!H75 -> Diese Arbeitsmappe wurde im Auftrag der Konferenz Kantonaler Energiefachstellen (EnFK) erstellt. Weder der Auftraggeber noch der Ersteller haften für die Richtigkeit der Resultate oder Schlussfolgerungen, welche aus dieser Arbeitsmappe gezogen werden. Für die Richtigkeit der Angaben haftet der Benutzer dieser Arbeitsmappe.
A44: =Version -> v1.0 | L44: =Versionsdatum -> 2016-08-22

Sheet Titelblatt
A2: =Sprachen!H77 -> Ausführungsbestätigung zur Energieverbrauchsanalyse
A3: =Sprachen!H78 -> Titelblatt
B5: =Sprachen!H79 -> Firmenname / Adresse:
B8: =Sprachen!H80 -> Kontaktperson Firma: | F8: =Sprachen!H81 -> Name:
F9: =Sprachen!H82 -> Tel.: | J9: =Sprachen!H84 -> Fax:
F10: =Sprachen!H83 -> Email:
B12: =Sprachen!H85 -> Betriebsstätte:
B16: =Sprachen!H86 -> Ursprünglich verwendetes EVA-Tool: | J16: =Sprachen!H87 -> (bei Unklarheiten bitte nachfolgenden Hinweis beachten)
F17: =Sprachen!H88 -> Hinweis:
F18: =Sprachen!H89 -> Bitte geben Sie hier an, ob zur Erfassung der Energieverbrauchsanalyse (EVA) ursprünglich: a) das neue EVA-Tool der EnFK (mit EnFK-Logo auf dem Titelblatt, gleich wie in diesem Dokument), oder b) ein kantonsspezifisches Tool der zuständigen Stelle des Kantons (i.d.R. mit Kantonslogo auf dem Titelblatt) verwendet wurde. Bei Fragen wenden Sie sich bitte an die zuständige Stelle des Kantons.
B22: =Sprachen!H90 -> Datum der Berichterfassung: | J22: =Sprachen!H91 -> Version:

Sheet Formular G1 + G2
A1: =Sprachen!H93 -> Formular G1 | Q1: =IF(Titelblatt!$F$12="","",Titelblatt!$F$12) ->  | R1: FLAGS [ja/nein] | S1: FLAGS [Begründung] | T1: Eingabemeldung "Art" | U1: Eingabemeldung "Art" | V1: Eingabemeldung "E-Kosten" | W1: Eingabemeldung "E-Kosten" | X1: Eingabemeldung "KE/Werterterh."
A2: =Sprachen!H94 -> Bestätigung der Ausführung der in der EVA deklarierten Massnahmen | Q2: =IF(Titelblatt!$F$22="","",Titelblatt!$F$22) -> 
A4: a | B4: =Sprachen!H95 -> Jahresendenergiebezug gewichtet gemäss EVA ¹⁾: | J4: kWh/a | K4: =Sprachen!H96 -> 1) Gem. EVA Formular C, Ziffer C.1 (aktuellstes Jahr)
A6: =Sprachen!H97 -> Übertragen Sie in die nachfolgende Tabelle alle in Formular F1 der EVA zur Umsetzung deklarierten neuen Massnahmen und bestätigen Sie anschliessend deren Ausführung.
A7: =Sprachen!H98 -> Nr. | B7: =Sprachen!H99 -> Massnahmentitel | D7: =Sprachen!H100 -> Energieeinsparung | K7: =Sprachen!H112 -> Investitionen | M7: =Sprachen!H113 -> Payback | N7: =Sprachen!H118 -> Massnahme im Wesentlichen wie in EVA deklariert ausgeführt?
D8: =Sprachen!H101 -> Ungewichtet | I8: =Sprachen!H109 -> Gewichtet ¹⁾ | K8: =Sprachen!H114 -> (gemäss EVA Formular F1)
D9: =Sprachen!H102 -> Einsparung 1 | F9: =Sprachen!H105 -> Einsparung 2 | H9: =Sprachen!H108 -> Total | I9: =Sprachen!H110 -> Total | J9: =Sprachen!H111 -> Anteil | K9: =Sprachen!H115 -> Total | L9: =IF(LEFT(Verwendetes_Tool,1)="b",Sprachen!H117,Sprachen!H116) -> KE | N9: =Sprachen!H119 -> ja | O9: =Sprachen!H120 -> = wie deklariert ausgeführt | X9: =IF(LEFT(Verwendetes_Tool,1)="b",Eingabemeldung(Sprachen!$H$190,Sprachen!$H$189,'Formular G1 + G2'!L9),Eingabemeldung(Sprachen!$H$187,Sprachen!$H$186,'Formular G1 + G2'!L9)) -> 
D10: =Sprachen!H103 -> Art | E10: [kWh/a] | F10: =Sprachen!H106 -> Art | G10: [kWh/a] | H10: [kWh/a] | I10: [kWh/a] | J10: [-] | K10: [CHF] | M10: [a] | N10: =Sprachen!H122 -> nein | O10: =Sprachen!H123 -> = nicht o. anders ausgeführt
A11: =Sprachen!H125 -> Haustechnikanlagen / Gebäudehülle
H12: =IF(B12="","",E12+G12) ->  | I12: =IF(OR(AND(E12<>"",D12=""),AND(G12<>"",F12="")),"Art?",IF(OR(B12="",Verwendetes_Tool=""),"",IF(LEFT(Verwendetes_Tool,1)="a",IFERROR(E12*VLOOKUP(D12,Admin!$A$39:$B$44,2,FALSE),0)+IFERROR(G12*VLOOKUP(F12,Admin!$A$39:$B$44,2,FALSE),0),IF(D12="E",(E12*2)+(IF(F12="E",(G12*2),G12)),E12+(IF(F12="E",(G12*2),G12)))))) ->  | J12: =IF(B12="","",IF(OR($H$4=0,$H$4=""),0,I12/$H$4)) ->  | O12: =IF(N12="","",IF(OR(N12="ja",N12="oui",N12="si"),Sprachen!$H$121,Sprachen!$H$124)) ->  | R12: =IF(OR(N12="ja",N12="oui",N12="si"),1,0) -> 0 | S12: =IF(OR(N12="nein",N12="non",N12="no"),1,0) -> 0 | T12: =Eingabemeldung(Sprachen!$H$182,Sprachen!$H$181,'Formular G1 + G2'!D12) ->  | U12: =Eingabemeldung(Sprachen!$H$182,Sprachen!$H$181,'Formular G1 + G2'!F12) ->  | X12: =IF(LEFT(Verwendetes_Tool,1)="b",Eingabemeldung(Sprachen!$H$190,Sprachen!$H$189,'Formular G1 + G2'!L12),Eingabemeldung(Sprachen!$H$187,Sprachen!$H$186,'Formular G1 + G2'!L12)) -> 
H13: =IF(B13="","",E13+G13) ->  | I13: =IF(OR(B13="",Verwendetes_Tool=""),"",IF(LEFT(Verwendetes_Tool,1)="a",IFERROR(E13*VLOOKUP(D13,Admin!$A$39:$B$44,2,FALSE),0)+IFERROR(G13*VLOOKUP(F13,Admin!$A$39:$B$44,2,FALSE),0),IF(D13="E",(E13*2)+(IF(F13="E",(G13*2),G13)),E13+(IF(F13="E",(G13*2),G13))))) ->  | O13: =IF(N13="","",IF(OR(N13="ja",N13="oui",N13="si"),Sprachen!$H$121,Sprachen!$H$124)) ->  | R13: =IF(OR(N13="ja",N13="oui",N13="si"),1,0) -> 0 | S13: =IF(OR(N13="nein",N13="non",N13="no"),1,0) -> 0 | T13: =Eingabemeldung(Sprachen!$H$182,Sprachen!$H$181,'Formular G1 + G2'!D13) ->  | U13: =Eingabemeldung(Sprachen!$H$182,Sprachen!$H$181,'Formular G1 + G2'!F13) ->  | X13: =IF(LEFT(Verwendetes_Tool,1)="b",Eingabemeldung(Sprachen!$H$190,Sprachen!$H$189,'Formular G1 + G2'!L13),Eingabemeldung(Sprachen!$H$187,Sprachen!$H$186,'Formular G1 + G2'!L13)) -> 
I14: =IF(OR(B14="",Verwendetes_Tool=""),"",IF(LEFT(Verwendetes_Tool,1)="a",IFERROR(E14*VLOOKUP(D14,Admin!$A$39:$B$44,2,FALSE),0)+IFERROR(G14*VLOOKUP(F14,Admin!$A$39:$B$44,2,FALSE),0),IF(D14="E",(E14*2)+(IF(F14="E",(G14*2),G14)),E14+(IF(F14="E",(G14*2),G14))))) ->  | O14: =IF(N14="","",IF(OR(N14="ja",N14="oui",N14="si"),Sprachen!$H$121,Sprachen!$H$124)) ->  | R14: 0 | S14: 0 | T14: =Eingabemeldung(Sprachen!$H$182,Sprachen!$H$181,'Formular G1 + G2'!D14) ->  | U14: =Eingabemeldung(Sprachen!$H$182,Sprachen!$H$181,'Formular G1 + G2'!F14) ->  | X14: =IF(LEFT(Verwendetes_Tool,1)="b",Eingabemeldung(Sprachen!$H$190,Sprachen!$H$189,'Formular G1 + G2'!L14),Eingabemeldung(Sprachen!$H$187,Sprachen!$H$186,'Formular G1 + G2'!L14)) -> 
I15: =IF(OR(B15="",Verwendetes_Tool=""),"",IF(LEFT(Verwendetes_Tool,1)="a",IFERROR(E15*VLOOKUP(D15,Admin!$A$39:$B$44,2,FALSE),0)+IFERROR(G15*VLOOKUP(F15,Admin!$A$39:$B$44,2,FALSE),0),IF(D15="E",(E15*2)+(IF(F15="E",(G15*2),G15)),E15+(IF(F15="E",(G15*2),G15))))) ->  | O15: =IF(N15="","",IF(OR(N15="ja",N15="oui",N15="si"),Sprachen!$H$121,Sprachen!$H$124)) ->  | R15: 0 | S15: 0 | T15: =Eingabemeldung(Sprachen!$H$182,Sprachen!$H$181,'Formular G1 + G2'!D15) ->  | U15: =Eingabemeldung(Sprachen!$H$182,Sprachen!$H$181,'Formular G1 + G2'!F15) ->  | X15: =IF(LEFT(Verwendetes_Tool,1)="b",Eingabemeldung(Sprachen!$H$190,Sprachen!$H$189,'Formular G1 + G2'!L15),Eingabemeldung(Sprachen!$H$187,Sprachen!$H$186,'Formular G1 + G2'!L15)) -> 
I16: =IF(OR(B16="",Verwendetes_Tool=""),"",IF(LEFT(Verwendetes_Tool,1)="a",IFERROR(E16*VLOOKUP(D16,Admin!$A$39:$B$44,2,FALSE),0)+IFERROR(G16*VLOOKUP(F16,Admin!$A$39:$B$44,2,FALSE),0),IF(D16="E",(E16*2)+(IF(F16="E",(G16*2),G16)),E16+(IF(F16="E",(G16*2),G16))))) ->  | O16: =IF(N16="","",IF(OR(N16="ja",N16="oui",N16="si"),Sprachen!$H$121,Sprachen!$H$124)) ->  | R16: 0 | S16: 0 | T16: =Eingabemeldung(Sprachen!$H$182,Sprachen!$H$181,'Formular G1 + G2'!D16) ->  | U16: =Eingabemeldung(Sprachen!$H$182,Sprachen!$H$181,'Formular G1 + G2'!F16) ->  | X16: =IF(LEFT(Verwendetes_Tool,1)="b",Eingabemeldung(Sprachen!$H$190,Sprachen!$H$189,'Formular G1 + G2'!L16),Eingabemeldung(Sprachen!$H$187,Sprachen!$H$186,'Formular G1 + G2'!L16)) -> 
I17: =IF(OR(B17="",Verwendetes_Tool=""),"",IF(LEFT(Verwendetes_Tool,1)="a",IFERROR(E17*VLOOKUP(D17,Admin!$A$39:$B$44,2,FALSE),0)+IFERROR(G17*VLOOKUP(F17,Admin!$A$39:$B$44,2,FALSE),0),IF(D17="E",(E17*2)+(IF(F17="E",(G17*2),G17)),E17+(IF(F17="E",(G17*2),G17))))) ->  | O17: =IF(N17="","",IF(OR(N17="ja",N17="oui",N17="si"),Sprachen!$H$121,Sprachen!$H$124)) ->  | R17: 0 | S17: 0 | T17: =Eingabemeldung(Sprachen!$H$182,Sprachen!$H$181,'Formular G1 + G2'!D17) ->  | U17: =Eingabemeldung(Sprachen!$H$182,Sprachen!$H$181,'Formular G1 + G2'!F17) ->  | X17: =IF(LEFT(Verwendetes_Tool,1)="b",Eingabemeldung(Sprachen!$H$190,Sprachen!$H$189,'Formular G1 + G2'!L17),Eingabemeldung(Sprachen!$H$187,Sprachen!$H$186,'Formular G1 + G2'!L17)) -> 
I18: =IF(OR(B18="",Verwendetes_Tool=""),"",IF(LEFT(Verwendetes_Tool,1)="a",IFERROR(E18*VLOOKUP(D18,Admin!$A$39:$B$44,2,FALSE),0)+IFERROR(G18*VLOOKUP(F18,Admin!$A$39:$B$44,2,FALSE),0),IF(D18="E",(E18*2)+(IF(F18="E",(G18*2),G18)),E18+(IF(F18="E",(G18*2),G18))))) ->  | O18: =IF(N18="","",IF(OR(N18="ja",N18="oui",N18="si"),Sprachen!$H$121,Sprachen!$H$124)) ->  | R18: 0 | S18: 0 | T18: =Eingabemeldung(Sprachen!$H$182,Sprachen!$H$181,'Formular G1 + G2'!D18) ->  | U18: =Eingabemeldung(Sprachen!$H$182,Sprachen!$H$181,'Formular G1 + G2'!F18) ->  | X18: =IF(LEFT(Verwendetes_Tool,1)="b",Eingabemeldung(Sprachen!$H$190,Sprachen!$H$189,'Formular G1 + G2'!L18),Eingabemeldung(Sprachen!$H$187,Sprachen!$H$186,'Formular G1 + G2'!L18)) -> 
I19: =IF(OR(B19="",Verwendetes_Tool=""),"",IF(LEFT(Verwendetes_Tool,1)="a",IFERROR(E19*VLOOKUP(D19,Admin!$A$39:$B$44,2,FALSE),0)+IFERROR(G19*VLOOKUP(F19,Admin!$A$39:$B$44,2,FALSE),0),IF(D19="E",(E19*2)+(IF(F19="E",(G19*2),G19)),E19+(IF(F19="E",(G19*2),G19))))) ->  | O19: =IF(N19="","",IF(OR(N19="ja",N19="oui",N19="si"),Sprachen!$H$121,Sprachen!$H$124)) ->  | R19: 0 | S19: 0 | T19: =Eingabemeldung(Sprachen!$H$182,Sprachen!$H$181,'Formular G1 + G2'!D19) ->  | U19: =Eingabemeldung(Sprachen!$H$182,Sprachen!$H$181,'Formular G1 + G2'!F19) ->  | X19: =IF(LEFT(Verwendetes_Tool,1)="b",Eingabemeldung(Sprachen!$H$190,Sprachen!$H$189,'Formular G1 + G2'!L19),Eingabemeldung(Sprachen!$H$187,Sprachen!$H$186,'Formular G1 + G2'!L19)) -> 
I20: =IF(OR(B20="",Verwendetes_Tool=""),"",IF(LEFT(Verwendetes_Tool,1)="a",IFERROR(E20*VLOOKUP(D20,Admin!$A$39:$B$44,2,FALSE),0)+IFERROR(G20*VLOOKUP(F20,Admin!$A$39:$B$44,2,FALSE),0),IF(D20="E",(E20*2)+(IF(F20="E",(G20*2),G20)),E20+(IF(F20="E",(G20*2),G20))))) ->  | O20: =IF(N20="","",IF(OR(N20="ja",N20="oui",N20="si"),Sprachen!$H$121,Sprachen!$H$124)) ->  | R20: 0 | S20: 0 | T20: =Eingabemeldung(Sprachen!$H$182,Sprachen!$H$181,'Formular G1 + G2'!D20) ->  | U20: =Eingabemeldung(Sprachen!$H$182,Sprachen!$H$181,'Formular G1 + G2'!F20) ->  | X20: =IF(LEFT(Verwendetes_Tool,1)="b",Eingabemeldung(Sprachen!$H$190,Sprachen!$H$189,'Formular G1 + G2'!L20),Eingabemeldung(Sprachen!$H$187,Sprachen!$H$186,'Formular G1 + G2'!L20)) -> 
I21: =IF(OR(B21="",Verwendetes_Tool=""),"",IF(LEFT(Verwendetes_Tool,1)="a",IFERROR(E21*VLOOKUP(D21,Admin!$A$39:$B$44,2,FALSE),0)+IFERROR(G21*VLOOKUP(F21,Admin!$A$39:$B$44,2,FALSE),0),IF(D21="E",(E21*2)+(IF(F21="E",(G21*2),G21)),E21+(IF(F21="E",(G21*2),G21))))) ->  | O21: =IF(N21="","",IF(OR(N21="ja",N21="oui",N21="si"),Sprachen!$H$121,Sprachen!$H$124)) ->  | R21: 0 | S21: 0 | T21: =Eingabemeldung(Sprachen!$H$182,Sprachen!$H$181,'Formular G1 + G2'!D21) ->  | U21: =Eingabemeldung(Sprachen!$H$182,Sprachen!$H$181,'Formular G1 + G2'!F21) ->  | X21: =IF(LEFT(Verwendetes_Tool,1)="b",Eingabemeldung(Sprachen!$H$190,Sprachen!$H$189,'Formular G1 + G2'!L21),Eingabemeldung(Sprachen!$H$187,Sprachen!$H$186,'Formular G1 + G2'!L21)) -> 
I22: =IF(OR(B22="",Verwendetes_Tool=""),"",IF(LEFT(Verwendetes_Tool,1)="a",IFERROR(E22*VLOOKUP(D22,Admin!$A$39:$B$44,2,FALSE),0)+IFERROR(G22*VLOOKUP(F22,Admin!$A$39:$B$44,2,FALSE),0),IF(D22="E",(E22*2)+(IF(F22="E",(G22*2),G22)),E22+(IF(F22="E",(G22*2),G22))))) ->  | O22: =IF(N22="","",IF(OR(N22="ja",N22="oui",N22="si"),Sprachen!$H$121,Sprachen!$H$124)) ->  | R22: 0 | S22: 0 | T22: =Eingabemeldung(Sprachen!$H$182,Sprachen!$H$181,'Formular G1 + G2'!D22) ->  | U22: =Eingabemeldung(Sprachen!$H$182,Sprachen!$H$181,'Formular G1 + G2'!F22) ->  | X22: =IF(LEFT(Verwendetes_Tool,1)="b",Eingabemeldung(Sprachen!$H$190,Sprachen!$H$189,'Formular G1 + G2'!L22),Eingabemeldung(Sprachen!$H$187,Sprachen!$H$186,'Formular G1 + G2'!L22)) -> 
I23: =IF(OR(B23="",Verwendetes_Tool=""),"",IF(LEFT(Verwendetes_Tool,1)="a",IFERROR(E23*VLOOKUP(D23,Admin!$A$39:$B$44,2,FALSE),0)+IFERROR(G23*VLOOKUP(F23,Admin!$A$39:$B$44,2,FALSE),0),IF(D23="E",(E23*2)+(IF(F23="E",(G23*2),G23)),E23+(IF(F23="E",(G23*2),G23))))) ->  | O23: =IF(N23="","",IF(OR(N23="ja",N23="oui",N23="si"),Sprachen!$H$121,Sprachen!$H$124)) ->  | R23: 0 | S23: 0 | T23: =Eingabemeldung(Sprachen!$H$182,Sprachen!$H$181,'Formular G1 + G2'!D23) ->  | U23: =Eingabemeldung(Sprachen!$H$182,Sprachen!$H$181,'Formular G1 + G2'!F23) ->  | X23: =IF(LEFT(Verwendetes_Tool,1)="b",Eingabemeldung(Sprachen!$H$190,Sprachen!$H$189,'Formular G1 + G2'!L23),Eingabemeldung(Sprachen!$H$187,Sprachen!$H$186,'Formular G1 + G2'!L23)) -> 
I24: =IF(OR(B24="",Verwendetes_Tool=""),"",IF(LEFT(Verwendetes_Tool,1)="a",IFERROR(E24*VLOOKUP(D24,Admin!$A$39:$B$44,2,FALSE),0)+IFERROR(G24*VLOOKUP(F24,Admin!$A$39:$B$44,2,FALSE),0),IF(D24="E",(E24*2)+(IF(F24="E",(G24*2),G24)),E24+(IF(F24="E",(G24*2),G24))))) ->  | O24: =IF(N24="","",IF(OR(N24="ja",N24="oui",N24="si"),Sprachen!$H$121,Sprachen!$H$124)) ->  | R24: 0 | S24: 0 | T24: =Eingabemeldung(Sprachen!$H$182,Sprachen!$H$181,'Formular G1 + G2'!D24) ->  | U24: =Eingabemeldung(Sprachen!$H$182,Sprachen!$H$181,'Formular G1 + G2'!F24) ->  | X24: =IF(LEFT(Verwendetes_Tool,1)="b",Eingabemeldung(Sprachen!$H$190,Sprachen!$H$189,'Formular G1 + G2'!L24),Eingabemeldung(Sprachen!$H$187,Sprachen!$H$186,'Formular G1 + G2'!L24)) -> 
I25: =IF(OR(B25="",Verwendetes_Tool=""),"",IF(LEFT(Verwendetes_Tool,1)="a",IFERROR(E25*VLOOKUP(D25,Admin!$A$39:$B$44,2,FALSE),0)+IFERROR(G25*VLOOKUP(F25,Admin!$A$39:$B$44,2,FALSE),0),IF(D25="E",(E25*2)+(IF(F25="E",(G25*2),G25)),E25+(IF(F25="E",(G25*2),G25))))) ->  | O25: =IF(N25="","",IF(OR(N25="ja",N25="oui",N25="si"),Sprachen!$H$121,Sprachen!$H$124)) ->  | R25: 0 | S25: 0 | T25: =Eingabemeldung(Sprachen!$H$182,Sprachen!$H$181,'Formular G1 + G2'!D25) ->  | U25: =Eingabemeldung(Sprachen!$H$182,Sprachen!$H$181,'Formular G1 + G2'!F25) ->  | X25: =IF(LEFT(Verwendetes_Tool,1)="b",Eingabemeldung(Sprachen!$H$190,Sprachen!$H$189,'Formular G1 + G2'!L25),Eingabemeldung(Sprachen!$H$187,Sprachen!$H$186,'Formular G1 + G2'!L25)) -> 
A26: =Sprachen!H126 -> Prozess- und Produktionsanlagen
I27: =IF(OR(B27="",Verwendetes_Tool=""),"",IF(LEFT(Verwendetes_Tool,1)="a",IFERROR(E27*VLOOKUP(D27,Admin!$A$39:$B$44,2,FALSE),0)+IFERROR(G27*VLOOKUP(F27,Admin!$A$39:$B$44,2,FALSE),0),IF(D27="E",(E27*2)+(IF(F27="E",(G27*2),G27)),E27+(IF(F27="E",(G27*2),G27))))) ->  | O27: =IF(N27="","",IF(OR(N27="ja",N27="oui",N27="si"),Sprachen!$H$121,Sprachen!$H$124)) ->  | R27: 0 | S27: 0 | T27: =Eingabemeldung(Sprachen!$H$182,Sprachen!$H$181,'Formular G1 + G2'!D27) ->  | U27: =Eingabemeldung(Sprachen!$H$182,Sprachen!$H$181,'Formular G1 + G2'!F27) ->  | X27: =IF(LEFT(Verwendetes_Tool,1)="b",Eingabemeldung(Sprachen!$H$190,Sprachen!$H$189,'Formular G1 + G2'!L27),Eingabemeldung(Sprachen!$H$187,Sprachen!$H$186,'Formular G1 + G2'!L27)) -> 
I28: =IF(OR(B28="",Verwendetes_Tool=""),"",IF(LEFT(Verwendetes_Tool,1)="a",IFERROR(E28*VLOOKUP(D28,Admin!$A$39:$B$44,2,FALSE),0)+IFERROR(G28*VLOOKUP(F28,Admin!$A$39:$B$44,2,FALSE),0),IF(D28="E",(E28*2)+(IF(F28="E",(G28*2),G28)),E28+(IF(F28="E",(G28*2),G28))))) ->  | O28: =IF(N28="","",IF(OR(N28="ja",N28="oui",N28="si"),Sprachen!$H$121,Sprachen!$H$124)) ->  | R28: 0 | S28: 0 | T28: =Eingabemeldung(Sprachen!$H$182,Sprachen!$H$181,'Formular G1 + G2'!D28) ->  | U28: =Eingabemeldung(Sprachen!$H$182,Sprachen!$H$181,'Formular G1 + G2'!F28) ->  | X28: =IF(LEFT(Verwendetes_Tool,1)="b",Eingabemeldung(Sprachen!$H$190,Sprachen!$H$189,'Formular G1 + G2'!L28),Eingabemeldung(Sprachen!$H$187,Sprachen!$H$186,'Formular G1 + G2'!L28)) -> 
I29: =IF(OR(B29="",Verwendetes_Tool=""),"",IF(LEFT(Verwendetes_Tool,1)="a",IFERROR(E29*VLOOKUP(D29,Admin!$A$39:$B$44,2,FALSE),0)+IFERROR(G29*VLOOKUP(F29,Admin!$A$39:$B$44,2,FALSE),0),IF(D29="E",(E29*2)+(IF(F29="E",(G29*2),G29)),E29+(IF(F29="E",(G29*2),G29))))) ->  | O29: =IF(N29="","",IF(OR(N29="ja",N29="oui",N29="si"),Sprachen!$H$121,Sprachen!$H$124)) ->  | R29: 0 | S29: 0 | T29: =Eingabemeldung(Sprachen!$H$182,Sprachen!$H$181,'Formular G1 + G2'!D29) ->  | U29: =Eingabemeldung(Sprachen!$H$182,Sprachen!$H$181,'Formular G1 + G2'!F29) ->  | X29: =IF(LEFT(Verwendetes_Tool,1)="b",Eingabemeldung(Sprachen!$H$190,Sprachen!$H$189,'Formular G1 + G2'!L29),Eingabemeldung(Sprachen!$H$187,Sprachen!$H$186,'Formular G1 + G2'!L29)) -> 
I30: =IF(OR(B30="",Verwendetes_Tool=""),"",IF(LEFT(Verwendetes_Tool,1)="a",IFERROR(E30*VLOOKUP(D30,Admin!$A$39:$B$44,2,FALSE),0)+IFERROR(G30*VLOOKUP(F30,Admin!$A$39:$B$44,2,FALSE),0),IF(D30="E",(E30*2)+(IF(F30="E",(G30*2),G30)),E30+(IF(F30="E",(G30*2),G30))))) ->  | O30: =IF(N30="","",IF(OR(N30="ja",N30="oui",N30="si"),Sprachen!$H$121,Sprachen!$H$124)) ->  | R30: 0 | S30: 0 | T30: =Eingabemeldung(Sprachen!$H$182,Sprachen!$H$181,'Formular G1 + G2'!D30) ->  | U30: =Eingabemeldung(Sprachen!$H$182,Sprachen!$H$181,'Formular G1 + G2'!F30) ->  | X30: =IF(LEFT(Verwendetes_Tool,1)="b",Eingabemeldung(Sprachen!$H$190,Sprachen!$H$189,'Formular G1 + G2'!L30),Eingabemeldung(Sprachen!$H$187,Sprachen!$H$186,'Formular G1 + G2'!L30)) -> 
I31: =IF(OR(B31="",Verwendetes_Tool=""),"",IF(LEFT(Verwendetes_Tool,1)="a",IFERROR(E31*VLOOKUP(D31,Admin!$A$39:$B$44,2,FALSE),0)+IFERROR(G31*VLOOKUP(F31,Admin!$A$39:$B$44,2,FALSE),0),IF(D31="E",(E31*2)+(IF(F31="E",(G31*2),G31)),E31+(IF(F31="E",(G31*2),G31))))) ->  | O31: =IF(N31="","",IF(OR(N31="ja",N31="oui",N31="si"),Sprachen!$H$121,Sprachen!$H$124)) ->  | R31: 0 | S31: 0 | T31: =Eingabemeldung(Sprachen!$H$182,Sprachen!$H$181,'Formular G1 + G2'!D31) ->  | U31: =Eingabemeldung(Sprachen!$H$182,Sprachen!$H$181,'Formular G1 + G2'!F31) ->  | X31: =IF(LEFT(Verwendetes_Tool,1)="b",Eingabemeldung(Sprachen!$H$190,Sprachen!$H$189,'Formular G1 + G2'!L31),Eingabemeldung(Sprachen!$H$187,Sprachen!$H$186,'Formular G1 + G2'!L31)) -> 
I32: =IF(OR(B32="",Verwendetes_Tool=""),"",IF(LEFT(Verwendetes_Tool,1)="a",IFERROR(E32*VLOOKUP(D32,Admin!$A$39:$B$44,2,FALSE),0)+IFERROR(G32*VLOOKUP(F32,Admin!$A$39:$B$44,2,FALSE),0),IF(D32="E",(E32*2)+(IF(F32="E",(G32*2),G32)),E32+(IF(F32="E",(G32*2),G32))))) ->  | O32: =IF(N32="","",IF(OR(N32="ja",N32="oui",N32="si"),Sprachen!$H$121,Sprachen!$H$124)) ->  | R32: 0 | S32: 0 | T32: =Eingabemeldung(Sprachen!$H$182,Sprachen!$H$181,'Formular G1 + G2'!D32) ->  | U32: =Eingabemeldung(Sprachen!$H$182,Sprachen!$H$181,'Formular G1 + G2'!F32) ->  | X32: =IF(LEFT(Verwendetes_Tool,1)="b",Eingabemeldung(Sprachen!$H$190,Sprachen!$H$189,'Formular G1 + G2'!L32),Eingabemeldung(Sprachen!$H$187,Sprachen!$H$186,'Formular G1 + G2'!L32)) -> 
A33: =Sprachen!H127 -> S3 / Einsparziel aller auszuführenden neuen Massnahmen gemäss EVA: | H33: =SUM(H12:H32) -> 0 | I33: =SUM(I12:I32) -> 0 | J33: =IF(H4="","",I33/H4) ->  | K33: =IF(LEFT(Verwendetes_Tool,1)="b",Sprachen!H128,Sprachen!H129) -> (bei Abweichung zum EVA-Tool: Hinweis durch Klicken dieser Zelle anzeigen) | R33: =IF(SUM(R12:R32)=0,0,1) -> 0 | S33: =IF(SUM(S12:S32)=0,0,1) -> 0 | T33: =Eingabemeldung(Sprachen!$H$131,Sprachen!$H$130,'Formular G1 + G2'!K33) -> 
A34: =Sprachen!H132 -> S6 / Summe aller wie deklariert ausgeführten Massnahmen | H34: =SUMIF(R12:R32,1,H12:H32) -> 0 | I34: =SUMIF(R12:R32,1,I12:I32) -> 0 | J34: =IF(H4=0,"",I34/H4) ->  | K34: =IF(H4="",Sprachen!H133,IF(S33=1,Sprachen!H134,IF(OR(J33=0,J34=0),Sprachen!H135,IF(J33=J34,Sprachen!H136,"")))) -> Bitte Jahresenergiebezug gewichtet eintragen.
A36: =IF(S33=1,Sprachen!H137,Sprachen!H138) -> Kommentar zu den (wie deklariert) ausgeführten Massnahmen (fakultativ):
A38: =Sprachen!H140 -> Formular G2 | Q38: =IF(Titelblatt!$F$12="","",Titelblatt!$F$12) -> 
A39: =Sprachen!H141 -> Realisierte Massnahmen als Ersatz für nicht oder wesentlich anders realisierte Massnahmen | Q39: =IF(Titelblatt!$F$22="","",Titelblatt!$F$22) -> 
A41: =Sprachen!H142 -> Nr. | B41: =Sprachen!H144 -> Massnahmentitel | D41: =Sprachen!H145 -> Energieeinsparung | K41: =Sprachen!H157 -> Energiepreis | M41: =Sprachen!H160 -> Kosten- einsp. | N41: =Sprachen!H162 -> Investitionen | Q41: =Sprachen!H166 -> Pay- back
D42: =Sprachen!H146 -> Ungewichtet | I42: =Sprachen!H154 -> Gewichtet ¹⁾
A43: =Sprachen!H143 -> Ersatzmassnahmen müssen im Arbeitsblatt "Beschreibungen G2" oder einer Beilage detailliert und nachvollziehbar beschrieben werden! | D43: =Sprachen!H147 -> Einsparung 1 | F43: =Sprachen!H150 -> Einsparung 2 | H43: =Sprachen!H153 -> Total | I43: =Sprachen!H155 -> Total | J43: =Sprachen!H156 -> Anteil | K43: =Sprachen!H158 -> Einspar.1 | L43: =Sprachen!H159 -> Einspar.2 | M43: =Sprachen!H161 -> Total | N43: =Sprachen!H163 -> Total | P43: =IF(LEFT(Verwendetes_Tool,1)="b",Sprachen!H165,Sprachen!H164) -> KE | X43: =IF(LEFT(Verwendetes_Tool,1)="b",Eingabemeldung(Sprachen!$H$190,Sprachen!$H$189,'Formular G1 + G2'!P43),Eingabemeldung(Sprachen!$H$187,Sprachen!$H$186,'Formular G1 + G2'!P43)) -> 
D44: =Sprachen!H148 -> Art | E44: [kWh/a] | F44: =Sprachen!H151 -> Art | G44: [kWh/a] | H44: [kWh/a] | I44: [kWh/a] | J44: [-] | K44: [CHF/kWh] | L44: [CHF/kWh] | M44: [CHF/a] | N44: [CHF] | Q44: [a]
E45: b | G45: c | H45: b+c | I45: d = b+c 1) | J45: d/a | K45: e | L45: f | M45: g = b*e+c*f | N45: h | P45: i | Q45: =IF(LEFT(Verwendetes_Tool,1)="b","h*(1-i)/g","h*i/g") -> h*i/g
A46: =Sprachen!H167 -> Ersatzmassnahmen
A47: 1 | H47: =IF(B47="","",E47+G47) ->  | I47: =IF(OR(B47="",Verwendetes_Tool=""),"",IF(LEFT(Verwendetes_Tool,1)="a",IFERROR(E47*VLOOKUP(D47,Admin!$A$39:$B$44,2,FALSE),0)+IFERROR(G47*VLOOKUP(F47,Admin!$A$39:$B$44,2,FALSE),0),IF(D47="E",(E47*2)+(IF(F47="E",(G47*2),G47)),E47+(IF(F47="E",(G47*2),G47))))) ->  | J47: =IF(B47="","",IF(OR($H$4=0,$H$4=""),0,I47/$H$4)) ->  | M47: =IF(B47="","",IF(OR(AND(E47<>"",K47=""),AND(G47<>"",L47="")),Sprachen!$H$185,(E47*K47)+(G47*L47))) ->  | Q47: =IF(B47="","",IF(M47="","",IF(N47="",0,IF(P47="",IF(LEFT(Verwendetes_Tool,1)="b",Sprachen!$H$191,Sprachen!$H$188),IF(LEFT(Verwendetes_Tool,1)="b",(N47*(1-P47))/M47,(N47*P47/M47)))))) ->  | T47: =Eingabemeldung(Sprachen!$H$182,Sprachen!$H$181,'Formular G1 + G2'!D47) ->  | U47: =Eingabemeldung(Sprachen!$H$182,Sprachen!$H$181,'Formular G1 + G2'!F47) ->  | V47: =Eingabemeldung(Sprachen!$H$184,Sprachen!$H$183,'Formular G1 + G2'!K47) ->  | W47: =Eingabemeldung(Sprachen!$H$184,Sprachen!$H$183,'Formular G1 + G2'!L47) ->  | X47: =IF(LEFT(Verwendetes_Tool,1)="b",Eingabemeldung(Sprachen!$H$190,Sprachen!$H$189,'Formular G1 + G2'!P47),Eingabemeldung(Sprachen!$H$187,Sprachen!$H$186,'Formular G1 + G2'!P47)) -> 
A48: 2 | H48: =IF(B48="","",E48+G48) ->  | I48: =IF(OR(B48="",Verwendetes_Tool=""),"",IF(LEFT(Verwendetes_Tool,1)="a",IFERROR(E48*VLOOKUP(D48,Admin!$A$39:$B$44,2,FALSE),0)+IFERROR(G48*VLOOKUP(F48,Admin!$A$39:$B$44,2,FALSE),0),IF(D48="E",(E48*2)+(IF(F48="E",(G48*2),G48)),E48+(IF(F48="E",(G48*2),G48))))) ->  | J48: =IF(B48="","",IF(OR($H$4=0,$H$4=""),0,I48/$H$4)) ->  | M48: =IF(B48="","",IF(OR(AND(E48<>"",K48=""),AND(G48<>"",L48="")),Sprachen!$H$185,(E48*K48)+(G48*L48))) ->  | Q48: =IF(B48="","",IF(M48="","",IF(N48="",0,IF(P48="",IF(LEFT(Verwendetes_Tool,1)="b",Sprachen!$H$191,Sprachen!$H$188),IF(LEFT(Verwendetes_Tool,1)="b",(N48*(1-P48))/M48,(N48*P48/M48)))))) ->  | T48: =Eingabemeldung(Sprachen!$H$182,Sprachen!$H$181,'Formular G1 + G2'!D48) ->  | U48: =Eingabemeldung(Sprachen!$H$182,Sprachen!$H$181,'Formular G1 + G2'!F48) ->  | V48: =Eingabemeldung(Sprachen!$H$184,Sprachen!$H$183,'Formular G1 + G2'!K48) ->  | W48: =Eingabemeldung(Sprachen!$H$184,Sprachen!$H$183,'Formular G1 + G2'!L48) ->  | X48: =IF(LEFT(Verwendetes_Tool,1)="b",Eingabemeldung(Sprachen!$H$190,Sprachen!$H$189,'Formular G1 + G2'!P48),Eingabemeldung(Sprachen!$H$187,Sprachen!$H$186,'Formular G1 + G2'!P48)) -> 
A49: 3 | I49: =IF(OR(B49="",Verwendetes_Tool=""),"",IF(LEFT(Verwendetes_Tool,1)="a",IFERROR(E49*VLOOKUP(D49,Admin!$A$39:$B$44,2,FALSE),0)+IFERROR(G49*VLOOKUP(F49,Admin!$A$39:$B$44,2,FALSE),0),IF(D49="E",(E49*2)+(IF(F49="E",(G49*2),G49)),E49+(IF(F49="E",(G49*2),G49))))) ->  | M49: =IF(B49="","",IF(OR(AND(E49<>"",K49=""),AND(G49<>"",L49="")),Sprachen!$H$185,(E49*K49)+(G49*L49))) ->  | Q49: =IF(B49="","",IF(M49="","",IF(N49="",0,IF(P49="",IF(LEFT(Verwendetes_Tool,1)="b",Sprachen!$H$191,Sprachen!$H$188),IF(LEFT(Verwendetes_Tool,1)="b",(N49*(1-P49))/M49,(N49*P49/M49)))))) ->  | T49: =Eingabemeldung(Sprachen!$H$182,Sprachen!$H$181,'Formular G1 + G2'!D49) ->  | U49: =Eingabemeldung(Sprachen!$H$182,Sprachen!$H$181,'Formular G1 + G2'!F49) ->  | V49: =Eingabemeldung(Sprachen!$H$184,Sprachen!$H$183,'Formular G1 + G2'!K49) ->  | W49: =Eingabemeldung(Sprachen!$H$184,Sprachen!$H$183,'Formular G1 + G2'!L49) ->  | X49: =IF(LEFT(Verwendetes_Tool,1)="b",Eingabemeldung(Sprachen!$H$190,Sprachen!$H$189,'Formular G1 + G2'!P49),Eingabemeldung(Sprachen!$H$187,Sprachen!$H$186,'Formular G1 + G2'!P49)) -> 
A50: 4 | I50: =IF(OR(B50="",Verwendetes_Tool=""),"",IF(LEFT(Verwendetes_Tool,1)="a",IFERROR(E50*VLOOKUP(D50,Admin!$A$39:$B$44,2,FALSE),0)+IFERROR(G50*VLOOKUP(F50,Admin!$A$39:$B$44,2,FALSE),0),IF(D50="E",(E50*2)+(IF(F50="E",(G50*2),G50)),E50+(IF(F50="E",(G50*2),G50))))) ->  | M50: =IF(B50="","",IF(OR(AND(E50<>"",K50=""),AND(G50<>"",L50="")),Sprachen!$H$185,(E50*K50)+(G50*L50))) ->  | Q50: =IF(B50="","",IF(M50="","",IF(N50="",0,IF(P50="",IF(LEFT(Verwendetes_Tool,1)="b",Sprachen!$H$191,Sprachen!$H$188),IF(LEFT(Verwendetes_Tool,1)="b",(N50*(1-P50))/M50,(N50*P50/M50)))))) ->  | T50: =Eingabemeldung(Sprachen!$H$182,Sprachen!$H$181,'Formular G1 + G2'!D50) ->  | U50: =Eingabemeldung(Sprachen!$H$182,Sprachen!$H$181,'Formular G1 + G2'!F50) ->  | V50: =Eingabemeldung(Sprachen!$H$184,Sprachen!$H$183,'Formular G1 + G2'!K50) ->  | W50: =Eingabemeldung(Sprachen!$H$184,Sprachen!$H$183,'Formular G1 + G2'!L50) ->  | X50: =IF(LEFT(Verwendetes_Tool,1)="b",Eingabemeldung(Sprachen!$H$190,Sprachen!$H$189,'Formular G1 + G2'!P50),Eingabemeldung(Sprachen!$H$187,Sprachen!$H$186,'Formular G1 + G2'!P50)) -> 
A51: 5 | I51: =IF(OR(B51="",Verwendetes_Tool=""),"",IF(LEFT(Verwendetes_Tool,1)="a",IFERROR(E51*VLOOKUP(D51,Admin!$A$39:$B$44,2,FALSE),0)+IFERROR(G51*VLOOKUP(F51,Admin!$A$39:$B$44,2,FALSE),0),IF(D51="E",(E51*2)+(IF(F51="E",(G51*2),G51)),E51+(IF(F51="E",(G51*2),G51))))) ->  | M51: =IF(B51="","",IF(OR(AND(E51<>"",K51=""),AND(G51<>"",L51="")),Sprachen!$H$185,(E51*K51)+(G51*L51))) ->  | Q51: =IF(B51="","",IF(M51="","",IF(N51="",0,IF(P51="",IF(LEFT(Verwendetes_Tool,1)="b",Sprachen!$H$191,Sprachen!$H$188),IF(LEFT(Verwendetes_Tool,1)="b",(N51*(1-P51))/M51,(N51*P51/M51)))))) ->  | T51: =Eingabemeldung(Sprachen!$H$182,Sprachen!$H$181,'Formular G1 + G2'!D51) ->  | U51: =Eingabemeldung(Sprachen!$H$182,Sprachen!$H$181,'Formular G1 + G2'!F51) ->  | V51: =Eingabemeldung(Sprachen!$H$184,Sprachen!$H$183,'Formular G1 + G2'!K51) ->  | W51: =Eingabemeldung(Sprachen!$H$184,Sprachen!$H$183,'Formular G1 + G2'!L51) ->  | X51: =IF(LEFT(Verwendetes_Tool,1)="b",Eingabemeldung(Sprachen!$H$190,Sprachen!$H$189,'Formular G1 + G2'!P51),Eingabemeldung(Sprachen!$H$187,Sprachen!$H$186,'Formular G1 + G2'!P51)) -> 
A52: 6 | I52: =IF(OR(B52="",Verwendetes_Tool=""),"",IF(LEFT(Verwendetes_Tool,1)="a",IFERROR(E52*VLOOKUP(D52,Admin!$A$39:$B$44,2,FALSE),0)+IFERROR(G52*VLOOKUP(F52,Admin!$A$39:$B$44,2,FALSE),0),IF(D52="E",(E52*2)+(IF(F52="E",(G52*2),G52)),E52+(IF(F52="E",(G52*2),G52))))) ->  | M52: =IF(B52="","",IF(OR(AND(E52<>"",K52=""),AND(G52<>"",L52="")),Sprachen!$H$185,(E52*K52)+(G52*L52))) ->  | Q52: =IF(B52="","",IF(M52="","",IF(N52="",0,IF(P52="",IF(LEFT(Verwendetes_Tool,1)="b",Sprachen!$H$191,Sprachen!$H$188),IF(LEFT(Verwendetes_Tool,1)="b",(N52*(1-P52))/M52,(N52*P52/M52)))))) ->  | T52: =Eingabemeldung(Sprachen!$H$182,Sprachen!$H$181,'Formular G1 + G2'!D52) ->  | U52: =Eingabemeldung(Sprachen!$H$182,Sprachen!$H$181,'Formular G1 + G2'!F52) ->  | V52: =Eingabemeldung(Sprachen!$H$184,Sprachen!$H$183,'Formular G1 + G2'!K52) ->  | W52: =Eingabemeldung(Sprachen!$H$184,Sprachen!$H$183,'Formular G1 + G2'!L52) ->  | X52: =IF(LEFT(Verwendetes_Tool,1)="b",Eingabemeldung(Sprachen!$H$190,Sprachen!$H$189,'Formular G1 + G2'!P52),Eingabemeldung(Sprachen!$H$187,Sprachen!$H$186,'Formular G1 + G2'!P52)) -> 
A53: 7 | I53: =IF(OR(B53="",Verwendetes_Tool=""),"",IF(LEFT(Verwendetes_Tool,1)="a",IFERROR(E53*VLOOKUP(D53,Admin!$A$39:$B$44,2,FALSE),0)+IFERROR(G53*VLOOKUP(F53,Admin!$A$39:$B$44,2,FALSE),0),IF(D53="E",(E53*2)+(IF(F53="E",(G53*2),G53)),E53+(IF(F53="E",(G53*2),G53))))) ->  | M53: =IF(B53="","",IF(OR(AND(E53<>"",K53=""),AND(G53<>"",L53="")),Sprachen!$H$185,(E53*K53)+(G53*L53))) ->  | Q53: =IF(B53="","",IF(M53="","",IF(N53="",0,IF(P53="",IF(LEFT(Verwendetes_Tool,1)="b",Sprachen!$H$191,Sprachen!$H$188),IF(LEFT(Verwendetes_Tool,1)="b",(N53*(1-P53))/M53,(N53*P53/M53)))))) ->  | T53: =Eingabemeldung(Sprachen!$H$182,Sprachen!$H$181,'Formular G1 + G2'!D53) ->  | U53: =Eingabemeldung(Sprachen!$H$182,Sprachen!$H$181,'Formular G1 + G2'!F53) ->  | V53: =Eingabemeldung(Sprachen!$H$184,Sprachen!$H$183,'Formular G1 + G2'!K53) ->  | W53: =Eingabemeldung(Sprachen!$H$184,Sprachen!$H$183,'Formular G1 + G2'!L53) ->  | X53: =IF(LEFT(Verwendetes_Tool,1)="b",Eingabemeldung(Sprachen!$H$190,Sprachen!$H$189,'Formular G1 + G2'!P53),Eingabemeldung(Sprachen!$H$187,Sprachen!$H$186,'Formular G1 + G2'!P53)) -> 
A54: 8 | I54: =IF(OR(B54="",Verwendetes_Tool=""),"",IF(LEFT(Verwendetes_Tool,1)="a",IFERROR(E54*VLOOKUP(D54,Admin!$A$39:$B$44,2,FALSE),0)+IFERROR(G54*VLOOKUP(F54,Admin!$A$39:$B$44,2,FALSE),0),IF(D54="E",(E54*2)+(IF(F54="E",(G54*2),G54)),E54+(IF(F54="E",(G54*2),G54))))) ->  | M54: =IF(B54="","",IF(OR(AND(E54<>"",K54=""),AND(G54<>"",L54="")),Sprachen!$H$185,(E54*K54)+(G54*L54))) ->  | Q54: =IF(B54="","",IF(M54="","",IF(N54="",0,IF(P54="",IF(LEFT(Verwendetes_Tool,1)="b",Sprachen!$H$191,Sprachen!$H$188),IF(LEFT(Verwendetes_Tool,1)="b",(N54*(1-P54))/M54,(N54*P54/M54)))))) ->  | T54: =Eingabemeldung(Sprachen!$H$182,Sprachen!$H$181,'Formular G1 + G2'!D54) ->  | U54: =Eingabemeldung(Sprachen!$H$182,Sprachen!$H$181,'Formular G1 + G2'!F54) ->  | V54: =Eingabemeldung(Sprachen!$H$184,Sprachen!$H$183,'Formular G1 + G2'!K54) ->  | W54: =Eingabemeldung(Sprachen!$H$184,Sprachen!$H$183,'Formular G1 + G2'!L54) ->  | X54: =IF(LEFT(Verwendetes_Tool,1)="b",Eingabemeldung(Sprachen!$H$190,Sprachen!$H$189,'Formular G1 + G2'!P54),Eingabemeldung(Sprachen!$H$187,Sprachen!$H$186,'Formular G1 + G2'!P54)) -> 
A55: 9 | I55: =IF(OR(B55="",Verwendetes_Tool=""),"",IF(LEFT(Verwendetes_Tool,1)="a",IFERROR(E55*VLOOKUP(D55,Admin!$A$39:$B$44,2,FALSE),0)+IFERROR(G55*VLOOKUP(F55,Admin!$A$39:$B$44,2,FALSE),0),IF(D55="E",(E55*2)+(IF(F55="E",(G55*2),G55)),E55+(IF(F55="E",(G55*2),G55))))) ->  | M55: =IF(B55="","",IF(OR(AND(E55<>"",K55=""),AND(G55<>"",L55="")),Sprachen!$H$185,(E55*K55)+(G55*L55))) ->  | Q55: =IF(B55="","",IF(M55="","",IF(N55="",0,IF(P55="",IF(LEFT(Verwendetes_Tool,1)="b",Sprachen!$H$191,Sprachen!$H$188),IF(LEFT(Verwendetes_Tool,1)="b",(N55*(1-P55))/M55,(N55*P55/M55)))))) ->  | T55: =Eingabemeldung(Sprachen!$H$182,Sprachen!$H$181,'Formular G1 + G2'!D55) ->  | U55: =Eingabemeldung(Sprachen!$H$182,Sprachen!$H$181,'Formular G1 + G2'!F55) ->  | V55: =Eingabemeldung(Sprachen!$H$184,Sprachen!$H$183,'Formular G1 + G2'!K55) ->  | W55: =Eingabemeldung(Sprachen!$H$184,Sprachen!$H$183,'Formular G1 + G2'!L55) ->  | X55: =IF(LEFT(Verwendetes_Tool,1)="b",Eingabemeldung(Sprachen!$H$190,Sprachen!$H$189,'Formular G1 + G2'!P55),Eingabemeldung(Sprachen!$H$187,Sprachen!$H$186,'Formular G1 + G2'!P55)) -> 
A56: 10 | I56: =IF(OR(B56="",Verwendetes_Tool=""),"",IF(LEFT(Verwendetes_Tool,1)="a",IFERROR(E56*VLOOKUP(D56,Admin!$A$39:$B$44,2,FALSE),0)+IFERROR(G56*VLOOKUP(F56,Admin!$A$39:$B$44,2,FALSE),0),IF(D56="E",(E56*2)+(IF(F56="E",(G56*2),G56)),E56+(IF(F56="E",(G56*2),G56))))) ->  | M56: =IF(B56="","",IF(OR(AND(E56<>"",K56=""),AND(G56<>"",L56="")),Sprachen!$H$185,(E56*K56)+(G56*L56))) ->  | Q56: =IF(B56="","",IF(M56="","",IF(N56="",0,IF(P56="",IF(LEFT(Verwendetes_Tool,1)="b",Sprachen!$H$191,Sprachen!$H$188),IF(LEFT(Verwendetes_Tool,1)="b",(N56*(1-P56))/M56,(N56*P56/M56)))))) ->  | T56: =Eingabemeldung(Sprachen!$H$182,Sprachen!$H$181,'Formular G1 + G2'!D56) ->  | U56: =Eingabemeldung(Sprachen!$H$182,Sprachen!$H$181,'Formular G1 + G2'!F56) ->  | V56: =Eingabemeldung(Sprachen!$H$184,Sprachen!$H$183,'Formular G1 + G2'!K56) ->  | W56: =Eingabemeldung(Sprachen!$H$184,Sprachen!$H$183,'Formular G1 + G2'!L56) ->  | X56: =IF(LEFT(Verwendetes_Tool,1)="b",Eingabemeldung(Sprachen!$H$190,Sprachen!$H$189,'Formular G1 + G2'!P56),Eingabemeldung(Sprachen!$H$187,Sprachen!$H$186,'Formular G1 + G2'!P56)) -> 
A58: =Sprachen!H168 -> S7 / Summe aller zusätzlichen Ersatzmassnahmen | H58: =SUM(H47:H56) -> 0 | I58: =SUM(I47:I56) -> 0 | J58: =IF(H4="","",I58/H4) -> 
A59: =Sprachen!H169 -> S6 / Summe aller wie deklariert ausgeführten Massnahmen | H59: =H34 -> 0 | I59: =I34 -> 0 | J59: =J34 ->  | K59: =Sprachen!H170 -> (gemäss Formular G1)
A60: =Sprachen!H171 -> S8 / Summe aller in den letzten drei Jahren ausgeführten Massnahmen | H60: =H58+H59 -> 0 | I60: =I58+I59 -> 0 | J60: =IF(OR(J58="",J59=""),"",J58+J59) ->  | K60: (S6 + S7)
A62: =IF(J60<J33,Sprachen!H172,Sprachen!H173) -> Allgemeiner Kommentar zur Ausführung der Massnahmen (fakultativ):
A71: =Sprachen!H174 -> Bestätigung
A72: =Sprachen!H175 -> Der/die Eigentümer/In der Betriebsstätte bestätigt mit dieser rechtsgültigen Unterschrift, dass er/sie:
A73: =Sprachen!H176 -> 1. die auf Formular G1 aufgelisteten Massnahmen ("Auszuführende neue Massnahmen" aus EVA Formular-Blatt F1) korrekt und vollständig übernommen hat,
A74: =Sprachen!H177 -> 2. die auf Formular G1 als ausgeführt deklarierten Massnahmen (Ausführung "ja") im Wesentlichen wie in der EVA beschrieben ausgeführt wurden, und
A75: =Sprachen!H178 -> 3. die auf Formular G2 aufgelisteten Massnahmen vollständig realisiert wurden.
A77: =Sprachen!H179 -> Ort, Dat.: | J77: =Sprachen!H180 -> Unterschrift:

Sheet Beschreibungen G2
A1: =Sprachen!H193 -> Beschreibungen G2 | C1: =IF(Titelblatt!$F$12="","",Titelblatt!$F$12) -> 
A2: =Sprachen!H194 -> Beschreibung der Ersatzmassnahmen | C2: =IF(Titelblatt!$F$22="","",Titelblatt!$F$22) -> 
A4: =Sprachen!H195 -> Hinweise: | C4: 0
A5: =Sprachen!H196 -> - Die im Formular G2 aufgeführten Massnahmen müssen in diesem Arbeitsblatt oder einem Beilagendokument detailliert und nachvollziehbar beschrieben werden.
A6: =Sprachen!H197 -> - Die Beschreibungsfelder werden erst angezeigt, wenn die Massnahmentitel in Formular G2 eingetragen wurden.
A7: =Sprachen!H198 -> - Wird für die Massnahmenbeschreibung mehr Platz benötigt, kann die Zeilenhöhe manuell angepasst werden.
A8: =Sprachen!H199 -> - Zeilenumbrüche können durch die Tastenkombination "Alt" + "Enter" eingefügt werden.
A10: =Sprachen!H200 -> Ersatzmassnahme 1, Formular G2: | B10: =IF(ersatz1="",Sprachen!H210,ersatz1) -> Massnahme 1 wurde nicht eingetragen
A11: =Sprachen!H220 -> Detaillierte Beschreibung der Massnahme: | B11: =Sprachen!H221 -> Beschreibung der Einsparberechnung: | C11: =Sprachen!H222 -> Beschreibung der Kosten:
A14: =Sprachen!H201 -> Ersatzmassnahme 2, Formular G2: | B14: =IF(ersatz2="",Sprachen!H211,ersatz2) -> Massnahme 2 wurde nicht eingetragen
A15: =Sprachen!H220 -> Detaillierte Beschreibung der Massnahme: | B15: =Sprachen!H221 -> Beschreibung der Einsparberechnung: | C15: =Sprachen!H222 -> Beschreibung der Kosten:
A18: =Sprachen!H202 -> Ersatzmassnahme 3, Formular G2: | B18: =IF(ersatz3="",Sprachen!H212,ersatz3) -> Massnahme 3 wurde nicht eingetragen
A19: =Sprachen!H220 -> Detaillierte Beschreibung der Massnahme: | B19: =Sprachen!H221 -> Beschreibung der Einsparberechnung: | C19: =Sprachen!H222 -> Beschreibung der Kosten:
A22: =Sprachen!H203 -> Ersatzmassnahme 4, Formular G2: | B22: =IF(ersatz4="",Sprachen!H213,ersatz4) -> Massnahme 4 wurde nicht eingetragen
A23: =Sprachen!H220 -> Detaillierte Beschreibung der Massnahme: | B23: =Sprachen!H221 -> Beschreibung der Einsparberechnung: | C23: =Sprachen!H222 -> Beschreibung der Kosten:
A26: =Sprachen!H204 -> Ersatzmassnahme 5, Formular G2: | B26: =IF(ersatz5="",Sprachen!H214,ersatz5) -> Massnahme 5 wurde nicht eingetragen
A27: =Sprachen!H220 -> Detaillierte Beschreibung der Massnahme: | B27: =Sprachen!H221 -> Beschreibung der Einsparberechnung: | C27: =Sprachen!H222 -> Beschreibung der Kosten:
A30: =Sprachen!H205 -> Ersatzmassnahme 6, Formular G2: | B30: =IF(ersatz6="",Sprachen!H215,ersatz6) -> Massnahme 6 wurde nicht eingetragen
A31: =Sprachen!H220 -> Detaillierte Beschreibung der Massnahme: | B31: =Sprachen!H221 -> Beschreibung der Einsparberechnung: | C31: =Sprachen!H222 -> Beschreibung der Kosten:
A34: =Sprachen!H206 -> Ersatzmassnahme 7, Formular G2: | B34: =IF(ersatz7="",Sprachen!H216,ersatz7) -> Massnahme 7 wurde nicht eingetragen
A35: =Sprachen!H220 -> Detaillierte Beschreibung der Massnahme: | B35: =Sprachen!H221 -> Beschreibung der Einsparberechnung: | C35: =Sprachen!H222 -> Beschreibung der Kosten:
A38: =Sprachen!H207 -> Ersatzmassnahme 8, Formular G2: | B38: =IF(ersatz8="",Sprachen!H217,ersatz8) -> Massnahme 8 wurde nicht eingetragen
A39: =Sprachen!H220 -> Detaillierte Beschreibung der Massnahme: | B39: =Sprachen!H221 -> Beschreibung der Einsparberechnung: | C39: =Sprachen!H222 -> Beschreibung der Kosten:
A42: =Sprachen!H208 -> Ersatzmassnahme 9, Formular G2: | B42: =IF(ersatz9="",Sprachen!H218,ersatz9) -> Massnahme 9 wurde nicht eingetragen
A43: =Sprachen!H220 -> Detaillierte Beschreibung der Massnahme: | B43: =Sprachen!H221 -> Beschreibung der Einsparberechnung: | C43: =Sprachen!H222 -> Beschreibung der Kosten:
A46: =Sprachen!H209 -> Ersatzmassnahme 10, Formular G2: | B46: =IF(ersatz10="",Sprachen!H219,ersatz10) -> Massnahme 10 wurde nicht eingetragen
A47: =Sprachen!H220 -> Detaillierte Beschreibung der Massnahme: | B47: =Sprachen!H221 -> Beschreibung der Einsparberechnung: | C47: =Sprachen!H222 -> Beschreibung der Kosten:
